Department,Entity,Pay Date,Product Family,Expense Area,Supplier Name,Transaction Number,Net Amount
BEIS,UKAEA,06/09/2019,Facilities,Property,Castle Water Ltd,5059591,"-7,727.33"
BEIS,UKAEA,06/09/2019,Facilities,Property,Castle Water Ltd,5059593,"-8,810.21"
BEIS,UKAEA,06/09/2019,Facilities,Property,Castle Water Ltd,5059594,"-6,600.84"
BEIS,UKAEA,06/09/2019,Facilities,Property,Castle Water Ltd,5059595,"-6,263.79"
BEIS,UKAEA,06/09/2019,Facilities,Property,Castle Water Ltd,5059596,"-8,195.52"
BEIS,UKAEA,06/09/2019,Facilities,Property,Castle Water Ltd,5059655,"-5,984.02"
BEIS,UKAEA,06/09/2019,Facilities,Property,Castle Water Ltd,5059655,"3,566.29"
BEIS,UKAEA,06/09/2019,Facilities,Property,Castle Water Ltd,5059656,"4,464.58"
BEIS,UKAEA,06/09/2019,Facilities,Property,Castle Water Ltd,5059657,"-3,566.30"
BEIS,UKAEA,06/09/2019,Facilities,Property,Castle Water Ltd,5059657,"5,984.04"
BEIS,UKAEA,06/09/2019,Facilities,Property,Castle Water Ltd,5059782,"5,020.03"
BEIS,UKAEA,06/09/2019,Facilities,Property,Castle Water Ltd,5059783,"-5,967.29"
BEIS,UKAEA,06/09/2019,Facilities,Property,Castle Water Ltd,5059784,"-20,707.01"
BEIS,UKAEA,06/09/2019,Facilities,Property,Castle Water Ltd,5059788,"4,114.18"
BEIS,UKAEA,06/09/2019,Facilities,Property,Castle Water Ltd,5059789,"4,464.58"
BEIS,UKAEA,06/09/2019,Facilities,Property,Castle Water Ltd,5060009,"8,816.76"
BEIS,UKAEA,06/09/2019,Facilities,Property,Castle Water Ltd,5060018,"5,967.29"
BEIS,UKAEA,06/09/2019,Facilities,Property,Castle Water Ltd,5060099,"16,242.42"
BEIS,UKAEA,06/09/2019,Facilities,Property,Castle Water Ltd,5060347,"4,445.94"
BEIS,UKAEA,06/09/2019,Facilities,Fusion,OCS Cleaning & Support Services,5060458,"-2,703.84"
BEIS,UKAEA,06/09/2019,Facilities,Property,Castle Water Ltd,5060487,"7,727.33"
BEIS,UKAEA,06/09/2019,Facilities,Property,Castle Water Ltd,5060495,"-6,003.69"
BEIS,UKAEA,23/09/2019,Professional Services,Support Services,Keoghs,5060666,"1,155.00"
BEIS,UKAEA,16/09/2019,ICT,Support Services,British Telecommunications plc - VOIP Services,5060910,"-8,043.25"
BEIS,UKAEA,26/09/2019,Energy and Fuels,Property,Corona Energy Retail 4 Limited,5061110,"-20,603.36"
BEIS,UKAEA,26/09/2019,Energy and Fuels,Property,Corona Energy Retail 4 Limited,5061114,"7,407.32"
BEIS,UKAEA,06/09/2019,Hired Agency Staff - Rullion CMF/PO,Support Services,Rullion Engineering Ltd,5061126,"5,086.52"
BEIS,UKAEA,06/09/2019,Engineering Goods,Fusion,Lighthouse UK Ltd,5061127,778.00
BEIS,UKAEA,06/09/2019,Engineering Goods,Fusion,Farnell Electronic Components Ltd,5061129,517.45
BEIS,UKAEA,06/09/2019,ICT,Support Services,Advatek UK Ltd,5061143,814.29
BEIS,UKAEA,06/09/2019,Professional Services,Property,ACMS UK Ltd,5061149,"1,366.00"
BEIS,UKAEA,06/09/2019,Professional Services,Fusion,ACMS UK Ltd,5061149,"2,732.00"
BEIS,UKAEA,06/09/2019,Professional Services,Property,ACMS UK Ltd,5061149,"2,732.00"
BEIS,UKAEA,06/09/2019,Hired Agency Staff - Rullion CMF/PO,Fusion,Rullion Engineering Ltd,5061153,"5,816.84"
BEIS,UKAEA,06/09/2019,Engineering Goods,Fusion,Anixter UK Ltd,5061155,969.72
BEIS,UKAEA,06/09/2019,Engineering Goods,Fusion,Laser 2000 UK Ltd - GBP,5061160,995.00
BEIS,UKAEA,06/09/2019,Engineering Goods,Fusion,Seton,5061161,840.48
BEIS,UKAEA,06/09/2019,Engineering Goods,Fusion,Tacklestore Ltd,5061163,"1,303.52"
BEIS,UKAEA,06/09/2019,Energy and Fuels,Property,EDF Energy,5061164,"2,060.16"
BEIS,UKAEA,26/09/2019,Energy and Fuels,Property,Corona Energy Retail 4 Limited,5061165,"14,630.20"
BEIS,UKAEA,06/09/2019,Energy and Fuels,Property,EDF Energy,5061166,"31,006.71"
BEIS,UKAEA,06/09/2019,ICT,Property,Calibre Cabling Services Ltd.,5061168,"3,429.34"
BEIS,UKAEA,06/09/2019,Hired Agency Staff - Rullion CMF/PO,Support Services,Rullion Engineering Ltd,5061174,"7,020.00"
BEIS,UKAEA,06/09/2019,Professional Services,Fusion,Renishaw Plc,5061175,"10,500.00"
BEIS,UKAEA,06/09/2019,Operational Goods,Fusion,Arco Ltd,5061188,"27,840.00"
BEIS,UKAEA,06/09/2019,Operational Goods,Fusion,Arco Ltd,5061190,"7,470.00"
BEIS,UKAEA,06/09/2019,Engineering Goods,Fusion,RS Components Ltd,5061193,568.24
BEIS,UKAEA,06/09/2019,Engineering Goods,Fusion,Routeco,5061194,"1,385.50"
BEIS,UKAEA,06/09/2019,Engineering Goods,Other,Edmundson Electricals Ltd,5061196,"2,394.71"
BEIS,UKAEA,06/09/2019,Hired Agency Staff - Rullion CMF/PO,Fusion,Rullion Engineering Ltd,5061197,"1,724.26"
BEIS,UKAEA,06/09/2019,Hired Agency Staff - Rullion CMF/PO,Support Services,Rullion Engineering Ltd,5061199,"3,986.01"
BEIS,UKAEA,06/09/2019,Engineering Goods,Fusion,Thermal Exchange Ltd,5061200,582.70
BEIS,UKAEA,06/09/2019,Learning and Development,Support Services,JTL,5061205,500.00
BEIS,UKAEA,06/09/2019,Engineering Goods,Fusion,RS Components Ltd,5061208,982.30
BEIS,UKAEA,06/09/2019,Waste Management,Fusion,Chemtech Waste Management,5061210,"29,425.00"
BEIS,UKAEA,06/09/2019,Engineering Goods,Fusion,Edmundson Electricals Ltd,5061212,578.68
BEIS,UKAEA,06/09/2019,ICT,Support Services,Unit 4 Business Software,5061214,"13,000.00"
BEIS,UKAEA,06/09/2019,Personnel Related,Support Services,CGI IT UK Limited,5061215,"4,872.58"
BEIS,UKAEA,06/09/2019,Personnel Related,Support Services,SHL Group Ltd,5061216,"15,995.00"
BEIS,UKAEA,06/09/2019,Hired Agency Staff - Rullion CMF/PO,Other,Rullion Engineering Ltd,5061217,"3,810.57"
BEIS,UKAEA,06/09/2019,Hired Agency Staff - Rullion CMF/PO,Other,Rullion Engineering Ltd,5061219,"3,099.00"
BEIS,UKAEA,09/09/2019,Engineering Goods,Fusion,Laseroptik,5061223,"2,002.42"
BEIS,UKAEA,06/09/2019,Research,Fusion,University of York - GBP,5061224,"1,709.12"
BEIS,UKAEA,06/09/2019,Engineering Goods,Fusion,Linde Kryotechnik Ag,5061225,"6,351.79"
BEIS,UKAEA,06/09/2019,Engineering Goods,Fusion,Manufacturing Technology Centre,5061227,"2,181.00"
BEIS,UKAEA,06/09/2019,Hired Agency Staff - Rullion CMF/PO,Fusion,Rullion Engineering Ltd,5061228,"1,395.00"
BEIS,UKAEA,06/09/2019,Hired Agency Staff - Rullion CMF/PO,Fusion,Rullion Engineering Ltd,5061229,"1,400.00"
BEIS,UKAEA,06/09/2019,ICT,Support Services,Ideagen Gael Ltd,5061230,"4,557.29"
BEIS,UKAEA,06/09/2019,ICT,Support Services,British Telecommunications PLC - Global Services,5061237,"8,043.25"
BEIS,UKAEA,06/09/2019,Hired Agency Staff - Rullion CMF/PO,Support Services,Rullion Engineering Ltd,5061242,"2,748.97"
BEIS,UKAEA,06/09/2019,Personnel Related,Other,Sundry Supplier,5061243,"1,225.00"
BEIS,UKAEA,06/09/2019,Personnel Related,Fusion,Webrecruit,5061244,"1,134.00"
BEIS,UKAEA,06/09/2019,Personnel Related,Fusion,Webrecruit,5061246,"1,180.00"
BEIS,UKAEA,06/09/2019,Hired Agency Staff - Rullion CMF/PO,Fusion,Rullion Engineering Ltd,5061248,"1,129.20"
BEIS,UKAEA,06/09/2019,Personnel Related,Fusion,Webrecruit,5061254,635.00
BEIS,UKAEA,09/09/2019,Other External Costs,Fusion,University of York - EUR,5061256,"20,133.70"
BEIS,UKAEA,06/09/2019,Engineering Goods,Fusion,Beacon Group International Ltd,5061258,535.50
BEIS,UKAEA,06/09/2019,Professional Services,Support Services,Bottomline Technologies Ltd,5061263,984.32
BEIS,UKAEA,09/09/2019,Office Solutions,Fusion,IOP Publishing Ltd - EUR,5061265,625.00
BEIS,UKAEA,09/09/2019,Office Solutions,Fusion,IOP Publishing Ltd - EUR,5061266,"1,666.63"
BEIS,UKAEA,09/09/2019,Office Solutions,Fusion,IOP Publishing Ltd - EUR,5061267,"2,444.38"
BEIS,UKAEA,09/09/2019,Office Solutions,Fusion,IOP Publishing Ltd - EUR,5061268,"1,333.30"
BEIS,UKAEA,18/09/2019,Learning and Development,Other,HMK Technical Services Ltd.,5061275,"2,200.00"
BEIS,UKAEA,06/09/2019,Professional Services,Support Services,Ridge And Partners Llp,5061281,"11,089.39"
BEIS,UKAEA,06/09/2019,Hired Agency Staff - Rullion CMF/PO,Fusion,Rullion Engineering Ltd,5061283,"5,921.83"
BEIS,UKAEA,09/09/2019,ICT,Fusion,Steadforce GmbH,5061287,"7,574.38"
BEIS,UKAEA,06/09/2019,Operational Goods,Fusion,Arco Ltd,5061292,"1,437.00"
BEIS,UKAEA,06/09/2019,Facilities,Property,Securitas Security Services,5061293,"2,918.85"
BEIS,UKAEA,06/09/2019,Facilities,Property,Baxter Storey Ltd.,5061295,"1,857.00"
BEIS,UKAEA,06/09/2019,Engineering Goods,Fusion,Sundry Supplier,5061296,"1,418.00"
BEIS,UKAEA,26/09/2019,Energy and Fuels,Property,Corona Energy Retail 4 Limited,5061298,"22,203.37"
BEIS,UKAEA,26/09/2019,Energy and Fuels,Property,Corona Energy Retail 4 Limited,5061300,"-24,023.33"
BEIS,UKAEA,06/09/2019,Energy and Fuels,Property,EDF Energy,5061304,506.13
BEIS,UKAEA,06/09/2019,Engineering Goods,Fusion,Precision Waterjet Ltd,5061310,"1,504.18"
BEIS,UKAEA,06/09/2019,Professional Services,Support Services,Grant Thornton UK LLP,5061312,"5,784.60"
BEIS,UKAEA,06/09/2019,Professional Services,Fusion,The University Of Sheffield,5061313,"2,500.00"
BEIS,UKAEA,06/09/2019,ICT,Support Services,British Telecommunications PLC - Global Services,5061314,"8,043.25"
BEIS,UKAEA,06/09/2019,Communications,Property,Kellylea PR Limited,5061317,"1,561.00"
BEIS,UKAEA,06/09/2019,Hired Agency Staff - Rullion CMF/PO,Other,Rullion Engineering Ltd,5061324,903.75
BEIS,UKAEA,06/09/2019,Energy and Fuels,Property,EDF Energy,5061328,600.90
BEIS,UKAEA,06/09/2019,Hired Agency Staff - Rullion CMF/PO,Fusion,Rullion Engineering Ltd,5061334,"2,820.16"
BEIS,UKAEA,06/09/2019,Hired Agency Staff - Rullion CMF/PO,Support Services,Rullion Engineering Ltd,5061335,"14,311.13"
BEIS,UKAEA,06/09/2019,Professional Services,Fusion,SA Group Ltd,5061341,"5,560.00"
BEIS,UKAEA,06/09/2019,Hired Agency Staff - Rullion CMF/PO,Support Services,Rullion Engineering Ltd,5061342,"1,052.40"
BEIS,UKAEA,06/09/2019,Hired Agency Staff - Rullion CMF/PO,Support Services,Rullion Engineering Ltd,5061343,"11,286.00"
BEIS,UKAEA,06/09/2019,Hired Agency Staff - Rullion CMF/PO,Support Services,Rullion Engineering Ltd,5061344,"2,581.65"
BEIS,UKAEA,06/09/2019,Hired Agency Staff - Rullion CMF/PO,Other,Rullion Engineering Ltd,5061346,"3,172.33"
BEIS,UKAEA,06/09/2019,Hired Agency Staff - Rullion CMF/PO,Support Services,Rullion Engineering Ltd,5061347,"14,032.52"
BEIS,UKAEA,06/09/2019,Personnel Related,Fusion,Webrecruit,5061352,565.00
BEIS,UKAEA,06/09/2019,Engineering Goods,Fusion,Raddec International Ltd,5061353,"1,155.00"
BEIS,UKAEA,06/09/2019,Personnel Related,Fusion,Nuvia Limited,5061354,"26,396.23"
BEIS,UKAEA,06/09/2019,Construction,Fusion,Warburton Building Services Ltd.,5061357,"2,119.71"
BEIS,UKAEA,09/09/2019,Engineering Goods,Other,DITO d.o.o,5061360,"4,499.95"
BEIS,UKAEA,06/09/2019,Engineering Goods,Fusion,Sundry Supplier,5061364,"3,060.00"
BEIS,UKAEA,06/09/2019,Engineering Goods,Fusion,BOC Ltd,5061365,"8,339.76"
BEIS,UKAEA,06/09/2019,Research,Fusion,Oxford University - GBP,5061368,"1,085.94"
BEIS,UKAEA,06/09/2019,Engineering Goods,Fusion,National Physical Laboratory Management Ltd,5061374,"3,100.00"
BEIS,UKAEA,06/09/2019,Personnel Related,Fusion,Webrecruit,5061379,664.00
BEIS,UKAEA,06/09/2019,Engineering Goods,Fusion,Swagelok London,5061380,709.50
BEIS,UKAEA,06/09/2019,ICT,Fusion,Flexera Software Limited,5061381,"3,000.00"
BEIS,UKAEA,06/09/2019,Professional Services,Support Services,Penningtons Manches Llp,5061382,750.50
BEIS,UKAEA,06/09/2019,Engineering Goods,Other,Pritchard Sheet Metal,5061383,885.30
BEIS,UKAEA,06/09/2019,Personnel Related,Support Services,CGI IT UK Limited,5061384,"4,123.83"
BEIS,UKAEA,06/09/2019,Professional Services,Support Services,Equiniti,5061385,"62,440.00"
BEIS,UKAEA,06/09/2019,Research,Fusion,The University Of Sheffield,5061390,875.00
BEIS,UKAEA,06/09/2019,Engineering Goods,Fusion,Hilti GB Ltd,5061392,782.75
BEIS,UKAEA,06/09/2019,Engineering Goods,Other,ODU-UK Ltd.,5061395,"3,900.00"
BEIS,UKAEA,06/09/2019,Engineering Goods,Fusion,NDE Research Association Limited,5061405,"5,000.00"
BEIS,UKAEA,06/09/2019,Engineering Goods,Fusion,BOC Ltd,5061408,503.00
BEIS,UKAEA,06/09/2019,Engineering Goods,Fusion,BOC Ltd,5061409,669.60
BEIS,UKAEA,06/09/2019,Engineering Goods,Other,Sundry Supplier,5061417,"6,961.77"
BEIS,UKAEA,06/09/2019,Energy and Fuels,Fusion,National Grid Plc,5061418,"4,000.53"
BEIS,UKAEA,06/09/2019,Facilities,Other,Baxter Storey Ltd.,5061419,"9,500.00"
BEIS,UKAEA,06/09/2019,Facilities,Other,Baxter Storey Ltd.,5061420,"5,586.77"
BEIS,UKAEA,06/09/2019,Engineering Goods,Fusion,Andor Technology,5061422,"1,371.00"
BEIS,UKAEA,06/09/2019,Engineering Goods,Fusion,Tacklestore Ltd,5061426,"2,195.63"
BEIS,UKAEA,06/09/2019,Professional Services,Fusion,Ramtuc,5061428,"3,000.00"
BEIS,UKAEA,06/09/2019,Hired Agency Staff - Rullion CMF/PO,Other,Rullion Engineering Ltd,5061429,750.00
BEIS,UKAEA,06/09/2019,Professional Services,Property,Fraser Walker Associates,5061442,"4,022.50"
BEIS,UKAEA,06/09/2019,Engineering Goods,Other,Ind-Tech Ltd,5061443,"1,106.82"
BEIS,UKAEA,06/09/2019,Engineering Goods,Fusion,BOC Ltd,5061444,571.50
BEIS,UKAEA,06/09/2019,Engineering Goods,Other,MSC/J & L Industrial Supply,5061448,"1,090.85"
BEIS,UKAEA,16/09/2019,ICT,Support Services,British Telecommunications plc - VOIP Services,5061452,961.27
BEIS,UKAEA,06/09/2019,Facilities,Support Services,SouthernsBroadstock Limited,5061453,"4,536.00"
BEIS,UKAEA,06/09/2019,Facilities,Support Services,SouthernsBroadstock Limited,5061457,"2,304.00"
BEIS,UKAEA,06/09/2019,ICT,Fusion,Dell Corporation Ltd,5061459,"4,109.70"
BEIS,UKAEA,06/09/2019,ICT,Fusion,Dell Corporation Ltd,5061460,"5,150.00"
BEIS,UKAEA,06/09/2019,ICT,Fusion,Dell Corporation Ltd,5061462,"1,715.00"
BEIS,UKAEA,06/09/2019,ICT,Fusion,Seaward Electronic Ltd,5061464,811.00
BEIS,UKAEA,06/09/2019,ICT,Fusion,Acme Technology,5061465,833.00
BEIS,UKAEA,06/09/2019,Engineering Goods,Fusion,RS Components Ltd,5061466,616.62
BEIS,UKAEA,06/09/2019,ICT,Fusion,SM Systems UK Ltd,5061467,"1,652.00"
BEIS,UKAEA,06/09/2019,ICT,Fusion,Millgate Limited,5061468,"1,321.92"
BEIS,UKAEA,06/09/2019,ICT,Fusion,Millgate Limited,5061468,"1,436.24"
BEIS,UKAEA,06/09/2019,ICT,Fusion,Millgate Limited,5061469,"1,028.00"
BEIS,UKAEA,09/09/2019,Engineering Goods,Fusion,Air Liquide Advanced Technologies,5061474,"502,986.83"
BEIS,UKAEA,06/09/2019,Professional Services,Fusion,Socotec UK Ltd,5061476,660.00
BEIS,UKAEA,06/09/2019,Professional Services,Fusion,Socotec UK Ltd,5061476,810.00
BEIS,UKAEA,06/09/2019,Hired Agency Staff - Rullion CMF/PO,Fusion,Rullion Engineering Ltd,5061482,"6,670.52"
BEIS,UKAEA,06/09/2019,Hired Agency Staff - Rullion CMF/PO,Fusion,Rullion Engineering Ltd,5061485,"3,149.03"
BEIS,UKAEA,06/09/2019,Office Solutions,Fusion,Odyssey Interactive Ltd - t/a Interact,5061487,500.00
BEIS,UKAEA,06/09/2019,Travel,Support Services,Flightlink Executive Travel Ltd,5061492,"2,815.88"
BEIS,UKAEA,06/09/2019,Engineering Goods,Fusion,Pfeiffer Vacuum UK,5061494,"27,700.63"
BEIS,UKAEA,06/09/2019,Engineering Goods,Fusion,Casella Cel,5061496,"7,237.00"
BEIS,UKAEA,06/09/2019,Engineering Goods,Fusion,BOC Ltd,5061497,"46,085.69"
BEIS,UKAEA,06/09/2019,Engineering Goods,Fusion,BOC Ltd,5061498,"1,296.00"
BEIS,UKAEA,06/09/2019,Engineering Goods,Other,Acrona Engineering Ltd,5061500,"11,782.24"
BEIS,UKAEA,06/09/2019,Engineering Goods,Other,Sundry Supplier,5061506,"2,850.00"
BEIS,UKAEA,06/09/2019,Professional Services,Fusion,Morson International,5061508,"7,687.65"
BEIS,UKAEA,06/09/2019,Engineering Goods,Fusion,Weka Ag,5061509,"65,001.54"
BEIS,UKAEA,06/09/2019,Engineering Goods,Fusion,Innovative Cryogenic Engineering Limited,5061510,"1,950.08"
BEIS,UKAEA,06/09/2019,Engineering Goods,Other,Oliver Crispin Robotics Limited,5061514,"1,350.00"
BEIS,UKAEA,06/09/2019,Engineering Goods,Fusion,City Electrical Factors,5061518,648.32
BEIS,UKAEA,06/09/2019,Engineering Goods,Other,Professional Fabrication Services L,5061527,"3,288.28"
BEIS,UKAEA,06/09/2019,Professional Services,Property,Blake Morgan LLP,5061528,"1,200.00"
BEIS,UKAEA,06/09/2019,Engineering Goods,Fusion,Witzenmann UK Ltd.,5061529,"1,378.41"
BEIS,UKAEA,06/09/2019,Professional Services,Other,Ridge And Partners Llp,5061530,"1,100.00"
BEIS,UKAEA,06/09/2019,ICT,Other,Bridge Fibre Limited,5061531,"1,105.00"
BEIS,UKAEA,06/09/2019,ICT,Other,Calibre Cabling Services Ltd.,5061532,"2,091.92"
BEIS,UKAEA,06/09/2019,Professional Services,Other,Tescan-UK Ltd,5061533,"14,863.00"
BEIS,UKAEA,06/09/2019,Professional Services,Fusion,Atkins Nuclear,5061535,"59,727.13"
BEIS,UKAEA,06/09/2019,Engineering Goods,Fusion,Wintwire,5061536,"10,800.00"
BEIS,UKAEA,06/09/2019,Professional Services,Support Services,Nuvia Limited,5061539,"1,551.41"
BEIS,UKAEA,06/09/2019,Professional Services,Support Services,Nuvia Limited,5061540,"4,248.29"
BEIS,UKAEA,06/09/2019,Hired Agency Staff - Rullion CMF/PO,Support Services,Rullion Engineering Ltd,5061541,750.88
BEIS,UKAEA,06/09/2019,Hired Agency Staff - Rullion CMF/PO,Support Services,Rullion Engineering Ltd,5061542,"5,653.28"
BEIS,UKAEA,06/09/2019,Professional Services,Fusion,Atkins Nuclear,5061543,"23,415.33"
BEIS,UKAEA,06/09/2019,Waste Management,Fusion,Hills Waste Solutions Ltd,5061550,"3,432.14"
BEIS,UKAEA,06/09/2019,Engineering Goods,Fusion,RS Components Ltd,5061561,"1,436.28"
BEIS,UKAEA,06/09/2019,Professional Services,Other,Glanville Consultants,5061563,854.00
BEIS,UKAEA,06/09/2019,Communications,Fusion,Sundry Supplier,5061565,"1,500.00"
BEIS,UKAEA,06/09/2019,Operational Goods,Fusion,Arco Ltd,5061568,"1,520.00"
BEIS,UKAEA,06/09/2019,Engineering Goods,Fusion,Border Technology & Innovations (UK) Ltd,5061570,990.00
BEIS,UKAEA,06/09/2019,ICT,Fusion,Grey Matter Limited,5061573,639.33
BEIS,UKAEA,06/09/2019,Personnel Related,Fusion,Allan Webb Ltd,5061575,"30,550.00"
BEIS,UKAEA,06/09/2019,Engineering Goods,Fusion,Schneider Electric,5061576,"7,320.14"
BEIS,UKAEA,06/09/2019,Operational Goods,Fusion,Arco Ltd,5061577,524.98
BEIS,UKAEA,06/09/2019,ICT,Fusion,Dell Corporation Ltd,5061581,"3,145.00"
BEIS,UKAEA,06/09/2019,ICT,Fusion,SM Systems UK Ltd,5061582,"3,786.00"
BEIS,UKAEA,06/09/2019,ICT,Fusion,Dell Corporation Ltd,5061583,679.00
BEIS,UKAEA,06/09/2019,Engineering Goods,Fusion,Kurt J Lesker,5061588,"1,134.06"
BEIS,UKAEA,06/09/2019,Engineering Goods,Fusion,Fortress Interlocks Ltd,5061590,835.10
BEIS,UKAEA,06/09/2019,Engineering Goods,Fusion,Hilti GB Ltd,5061593,"1,082.19"
BEIS,UKAEA,06/09/2019,Professional Services,Fusion,Morson International,5061594,"288,666.71"
BEIS,UKAEA,06/09/2019,Engineering Goods,Fusion,D Furnell Plant Services Ltd,5061597,850.00
BEIS,UKAEA,06/09/2019,Engineering Goods,Fusion,Oxford Bolts & Bearings,5061601,575.44
BEIS,UKAEA,06/09/2019,Engineering Goods,Fusion,Pipaway Engineering Ltd,5061603,"1,507.00"
BEIS,UKAEA,06/09/2019,Engineering Goods,Fusion,Augean Plc,5061605,"3,645.82"
BEIS,UKAEA,06/09/2019,Construction,Fusion,PMS Oxford Construction Services,5061609,816.67
BEIS,UKAEA,06/09/2019,ICT,Property,BESA Publications Ltd,5061612,"2,940.00"
BEIS,UKAEA,06/09/2019,ICT,Fusion,BESA Publications Ltd,5061612,"5,880.00"
BEIS,UKAEA,06/09/2019,ICT,Property,BESA Publications Ltd,5061612,"5,880.00"
BEIS,UKAEA,06/09/2019,Professional Services,Fusion,Fraser Walker Associates,5061616,"1,076.00"
BEIS,UKAEA,06/09/2019,Office Solutions,Support Services,Artisan Litho Print & Design,5061618,"1,980.00"
BEIS,UKAEA,06/09/2019,Facilities,Fusion,Zurich Management Services Ltd,5061619,"2,428.00"
BEIS,UKAEA,06/09/2019,Facilities,Property,Zurich Management Services Ltd,5061619,"3,642.00"
BEIS,UKAEA,06/09/2019,Energy and Fuels,Fusion,EDF Energy,5061620,"530,650.16"
BEIS,UKAEA,06/09/2019,Professional Services,Property,Blake Morgan LLP,5061622,"2,770.20"
BEIS,UKAEA,06/09/2019,Engineering Goods,Fusion,RS Components Ltd,5061624,625.80
BEIS,UKAEA,06/09/2019,Facilities,Property,OCS Cleaning & Support Services,5061625,"4,155.44"
BEIS,UKAEA,06/09/2019,Facilities,Property,Castle Water Ltd,5061630,"6,420.92"
BEIS,UKAEA,06/09/2019,Facilities,Property,Castle Water Ltd,5061631,"16,684.10"
BEIS,UKAEA,06/09/2019,Facilities,Property,OCS Cleaning & Support Services,5061632,"3,930.68"
BEIS,UKAEA,06/09/2019,Facilities,Property,OCS Cleaning & Support Services,5061632,"12,388.64"
BEIS,UKAEA,06/09/2019,Facilities,Fusion,OCS Cleaning & Support Services,5061632,"13,619.84"
BEIS,UKAEA,06/09/2019,Facilities,Property,OCS Cleaning & Support Services,5061633,"4,155.44"
BEIS,UKAEA,06/09/2019,Facilities,Property,OCS Cleaning & Support Services,5061634,626.35
BEIS,UKAEA,06/09/2019,Facilities,Property,OCS Cleaning & Support Services,5061634,"1,670.28"
BEIS,UKAEA,06/09/2019,Facilities,Fusion,OCS Cleaning & Support Services,5061634,"1,879.07"
BEIS,UKAEA,06/09/2019,Facilities,Property,OCS Cleaning & Support Services,5061635,"1,039.94"
BEIS,UKAEA,06/09/2019,Facilities,Property,Mears Estates,5061636,"11,234.92"
BEIS,UKAEA,06/09/2019,Facilities,Property,OCS Cleaning & Support Services,5061638,951.26
BEIS,UKAEA,06/09/2019,Facilities,Property,OCS Cleaning & Support Services,5061639,"1,549.51"
BEIS,UKAEA,06/09/2019,Facilities,Fusion,OCS Cleaning & Support Services,5061640,"2,703.84"
BEIS,UKAEA,13/09/2019,Personnel Related,Other,HOTLAB 2019 C/O Indian Association for Radiation Protection,5061642,875.61
BEIS,UKAEA,11/09/2019,Facilities,Property,Baxter Storey Ltd.,5061649,679.29
BEIS,UKAEA,11/09/2019,Facilities,Property,Baxter Storey Ltd.,5061650,"2,573.06"
BEIS,UKAEA,11/09/2019,Professional Services,Property,Carter Jonas LLP,5061651,650.00
BEIS,UKAEA,11/09/2019,Communications,Support Services,Pageone Communications Ltd,5061653,535.58
BEIS,UKAEA,11/09/2019,Engineering Goods,Other,Marine & Industrial Plastics Ltd,5061655,555.00
BEIS,UKAEA,11/09/2019,Construction,Fusion,S Jones Containers Ltd,5061663,"16,230.00"
BEIS,UKAEA,11/09/2019,Engineering Goods,Fusion,Machining Techology (Mach-Tech) Ltd,5061666,"3,470.33"
BEIS,UKAEA,11/09/2019,Professional Services,Fusion,Edinburgh Instruments,5061669,"3,200.00"
BEIS,UKAEA,11/09/2019,Engineering Goods,Other,Datron Technology Limited,5061671,"69,393.96"
BEIS,UKAEA,11/09/2019,Engineering Goods,Fusion,Arco Ltd,5061673,531.48
BEIS,UKAEA,11/09/2019,Engineering Goods,Fusion,Compass Minerals UK Ltd,5061675,"1,714.36"
BEIS,UKAEA,11/09/2019,Engineering Goods,Fusion,Grundfos Pumps Limited,5061676,"9,553.00"
BEIS,UKAEA,11/09/2019,Engineering Goods,Fusion,Grundfos Pumps Limited,5061677,"9,553.00"
BEIS,UKAEA,11/09/2019,Engineering Goods,Fusion,RS Components Ltd,5061678,511.21
BEIS,UKAEA,11/09/2019,Engineering Goods,Fusion,RS Components Ltd,5061678,801.68
BEIS,UKAEA,11/09/2019,Engineering Goods,Fusion,RS Components Ltd,5061679,"1,060.76"
BEIS,UKAEA,11/09/2019,Engineering Goods,Fusion,Constant Air Systems Ltd,5061682,"68,910.00"
BEIS,UKAEA,11/09/2019,Engineering Goods,Fusion,Farnell Electronic Components Ltd,5061687,791.71
BEIS,UKAEA,11/09/2019,Engineering Goods,Fusion,Omega Engineering Ltd,5061688,934.00
BEIS,UKAEA,11/09/2019,Personnel Related,Fusion,People Asset Management Ltd,5061693,"3,522.79"
BEIS,UKAEA,11/09/2019,Engineering Goods,Other,ODU-UK Ltd.,5061694,"1,873.70"
BEIS,UKAEA,11/09/2019,Engineering Goods,Other,Farnell Electronic Components Ltd,5061695,983.18
BEIS,UKAEA,11/09/2019,Engineering Goods,Fusion,Grant Instruments Ltd,5061696,"7,230.00"
BEIS,UKAEA,11/09/2019,Facilities,Other,Sundry Supplier,5061699,"16,487.55"
BEIS,UKAEA,11/09/2019,Engineering Goods,Fusion,Oxford Bolts & Bearings,5061701,590.30
BEIS,UKAEA,11/09/2019,Engineering Goods,Fusion,Oxford Bolts & Bearings,5061701,591.31
BEIS,UKAEA,11/09/2019,Engineering Goods,Fusion,Anixter UK Ltd,5061702,503.94
BEIS,UKAEA,11/09/2019,Communications,Fusion,Finetuned Limited,5061708,"3,742.50"
BEIS,UKAEA,11/09/2019,ICT,Support Services,Cisco Systems Finance International,5061709,"1,189.04"
BEIS,UKAEA,11/09/2019,Engineering Goods,Other,Gemini Technology Ltd,5061710,"11,091.00"
BEIS,UKAEA,13/09/2019,Research,Fusion,Chalmers University of Technology,5061711,"9,073.30"
BEIS,UKAEA,11/09/2019,Professional Services,Other,Ultra Electronics Energy,5061712,"2,763.47"
BEIS,UKAEA,11/09/2019,Facilities,Other,Portakabin Ltd,5061719,"1,750.64"
BEIS,UKAEA,11/09/2019,Professional Services,Fusion,SA Group Ltd,5061738,"10,147.00"
BEIS,UKAEA,11/09/2019,Professional Services,Fusion,SA Group Ltd,5061741,"19,085.37"
BEIS,UKAEA,11/09/2019,Engineering Goods,Fusion,BOC Ltd,5061742,580.25
BEIS,UKAEA,11/09/2019,Engineering Goods,Fusion,RS Components Ltd,5061744,841.02
BEIS,UKAEA,11/09/2019,Engineering Goods,Fusion,MetPrep Ltd.,5061745,521.15
BEIS,UKAEA,11/09/2019,Professional Services,Fusion,Cavendish Nuclear Ltd,5061749,607.86
BEIS,UKAEA,11/09/2019,Engineering Goods,Fusion,Garner Osbourne Circuits Ltd,5061760,940.80
BEIS,UKAEA,11/09/2019,Professional Services,Fusion,Engineering Analyis Services Ltd,5061761,"2,951.25"
BEIS,UKAEA,11/09/2019,Engineering Goods,Fusion,Garner Osbourne Circuits Ltd,5061766,940.80
BEIS,UKAEA,11/09/2019,Professional Services,Fusion,SA Group Ltd,5061769,"11,625.00"
BEIS,UKAEA,11/09/2019,Research,Fusion,University of Oxford,5061770,625.00
BEIS,UKAEA,11/09/2019,Facilities,Fusion,Baxter Storey Ltd.,5061772,"1,676.84"
BEIS,UKAEA,11/09/2019,Engineering Goods,Fusion,RS Components Ltd,5061781,642.04
BEIS,UKAEA,11/09/2019,Engineering Goods,Fusion,RS Components Ltd,5061782,"4,157.96"
BEIS,UKAEA,11/09/2019,Professional Services,Support Services,BDO LLP,5061785,"4,459.37"
BEIS,UKAEA,11/09/2019,Professional Services,Support Services,BDO LLP,5061785,"6,544.63"
BEIS,UKAEA,11/09/2019,Construction,Other,Anixter UK Ltd,5061786,"14,328.40"
BEIS,UKAEA,11/09/2019,Engineering Goods,Fusion,Rittal Limited,5061788,756.66
BEIS,UKAEA,11/09/2019,Engineering Goods,Fusion,Rittal Limited,5061790,915.48
BEIS,UKAEA,11/09/2019,Engineering Goods,Fusion,Leybold UK Ltd,5061792,"3,617.80"
BEIS,UKAEA,11/09/2019,Engineering Goods,Fusion,Pfeiffer Vacuum UK,5061793,"1,255.80"
BEIS,UKAEA,11/09/2019,Engineering Goods,Fusion,BOC Ltd,5061796,"1,531.08"
BEIS,UKAEA,11/09/2019,Facilities,Fusion,BBC Fire Protection Ltd,5061802,"43,620.72"
BEIS,UKAEA,11/09/2019,Engineering Goods,Fusion,Wood Nuclear Ltd,5061803,"6,663.90"
BEIS,UKAEA,11/09/2019,Engineering Goods,Fusion,Wood Nuclear Ltd,5061803,"22,442.39"
BEIS,UKAEA,11/09/2019,Engineering Goods,Fusion,Swagelok London,5061804,746.73
BEIS,UKAEA,11/09/2019,Waste Management,Fusion,Veolia ES UK Ltd,5061807,"19,417.99"
BEIS,UKAEA,11/09/2019,Engineering Goods,Fusion,Pilz Automation Technology,5061812,"1,877.29"
BEIS,UKAEA,11/09/2019,Personnel Related,Fusion,Webrecruit,5061815,735.00
BEIS,UKAEA,11/09/2019,Engineering Goods,Fusion,Optimum Group Services plc,5061817,"34,943.12"
BEIS,UKAEA,11/09/2019,Professional Services,Fusion,Tessella Ltd,5061820,"10,441.40"
BEIS,UKAEA,11/09/2019,Engineering Goods,Fusion,Farnell Electronic Components Ltd,5061823,512.50
BEIS,UKAEA,11/09/2019,Engineering Goods,Fusion,Sundry Supplier,5061826,500.00
BEIS,UKAEA,11/09/2019,Engineering Goods,Fusion,Agilent Technologies LDA UK Limited,5061827,"1,055.00"
BEIS,UKAEA,11/09/2019,Professional Services,Fusion,Allianz Engineering,5061830,"4,220.40"
BEIS,UKAEA,11/09/2019,Facilities,Property,Jackson Lift Services Ltd,5061831,"9,840.00"
BEIS,UKAEA,11/09/2019,Engineering Goods,Fusion,Gunnebo UK Ltd,5061833,"2,492.00"
BEIS,UKAEA,16/09/2019,ICT,Support Services,British Telecommunications plc - VOIP Services,5061849,"8,982.00"
BEIS,UKAEA,16/09/2019,Facilities,Support Services,BWT UK Limited,5061851,"1,458.80"
BEIS,UKAEA,18/09/2019,Engineering Goods,Fusion,BOC Ltd,5061852,"56,184.01"
BEIS,UKAEA,18/09/2019,Professional Services,Fusion,Cavendish Nuclear Limited,5061855,"14,736.93"
BEIS,UKAEA,18/09/2019,Professional Services,Fusion,Cavendish Nuclear Limited,5061856,"23,834.32"
BEIS,UKAEA,18/09/2019,Hired Agency Staff - Rullion CMF/PO,Support Services,Rullion Engineering Ltd,5061861,"7,348.98"
BEIS,UKAEA,16/09/2019,Engineering Goods,Other,Gemini Technology Ltd,5061863,"4,772.00"
BEIS,UKAEA,16/09/2019,Professional Services,Fusion,Astles Control Systems,5061865,"1,316.00"
BEIS,UKAEA,18/09/2019,Facilities,Property,Mears Estates,5061868,"1,622.79"
BEIS,UKAEA,16/09/2019,Travel,Support Services,Mawasem Limited,5061873,"82,034.39"
BEIS,UKAEA,13/09/2019,Office Solutions,Fusion,IOP Publishing Ltd - EUR,5061874,"3,125.00"
BEIS,UKAEA,13/09/2019,Office Solutions,Fusion,IOP Publishing Ltd - EUR,5061875,"3,763.84"
BEIS,UKAEA,13/09/2019,Office Solutions,Fusion,IOP Publishing Ltd - EUR,5061876,"1,333.30"
BEIS,UKAEA,13/09/2019,Office Solutions,Fusion,IOP Publishing Ltd - EUR,5061877,"1,333.30"
BEIS,UKAEA,13/09/2019,Office Solutions,Fusion,IOP Publishing Ltd - EUR,5061878,"1,666.63"
BEIS,UKAEA,13/09/2019,Office Solutions,Fusion,IOP Publishing Ltd - EUR,5061879,"1,555.52"
BEIS,UKAEA,16/09/2019,Professional Services,Fusion,Faithful+Gould,5061880,986.55
BEIS,UKAEA,16/09/2019,Professional Services,Property,Faithful+Gould,5061880,"1,479.83"
BEIS,UKAEA,16/09/2019,Professional Services,Property,Faithful+Gould,5061880,"2,466.38"
BEIS,UKAEA,16/09/2019,Facilities,Property,South Oxfordshire District Council,5061881,"67,536.00"
BEIS,UKAEA,16/09/2019,Facilities,Property,South Oxfordshire District Council,5061882,"121,788.00"
BEIS,UKAEA,16/09/2019,Professional Services,Fusion,Blake Morgan LLP,5061883,"13,916.95"
BEIS,UKAEA,18/09/2019,Professional Services,Fusion,Wood Nuclear Ltd,5061884,"14,131.22"
BEIS,UKAEA,16/09/2019,Research,Fusion,Lancaster University,5061888,"1,980.39"
BEIS,UKAEA,18/09/2019,Hired Agency Staff - Rullion CMF/PO,Fusion,Rullion Engineering Ltd,5061890,"4,463.10"
BEIS,UKAEA,18/09/2019,Hired Agency Staff - Rullion CMF/PO,Fusion,Rullion Engineering Ltd,5061891,"4,900.44"
BEIS,UKAEA,20/09/2019,Engineering Goods,Fusion,Laseroptik,5061892,"2,933.78"
BEIS,UKAEA,16/09/2019,Personnel Related,Support Services,The Validium Group Limited,5061893,700.75
BEIS,UKAEA,18/09/2019,Hired Agency Staff - Rullion CMF/PO,Fusion,Rullion Engineering Ltd,5061896,"4,421.15"
BEIS,UKAEA,16/09/2019,Engineering Goods,Fusion,ITM Power (Trading) Limited,5061897,"1,437.00"
BEIS,UKAEA,16/09/2019,Learning and Development,Support Services,Oxford Procurement Training,5061898,"2,850.00"
BEIS,UKAEA,16/09/2019,Professional Services,Fusion,British Engineering Services Ltd,5061899,"8,364.45"
BEIS,UKAEA,16/09/2019,Waste Management,Fusion,Sundry Supplier,5061901,930.00
BEIS,UKAEA,16/09/2019,Engineering Goods,Fusion,Sundry Supplier,5061902,"1,500.00"
BEIS,UKAEA,16/09/2019,Engineering Goods,Fusion,Sundry Supplier,5061903,"5,035.00"
BEIS,UKAEA,16/09/2019,Research,Fusion,University of Durham,5061904,"5,337.90"
BEIS,UKAEA,16/09/2019,Engineering Goods,Fusion,Dynamic Access UK Ltd,5061906,"1,500.00"
BEIS,UKAEA,16/09/2019,ICT,Support Services,Unit 4 Business Software,5061907,"12,000.00"
BEIS,UKAEA,18/09/2019,Hired Agency Staff - Rullion CMF/PO,Fusion,Rullion Engineering Ltd,5061908,"7,474.52"
BEIS,UKAEA,18/09/2019,Hired Agency Staff - Rullion CMF/PO,Fusion,Rullion Engineering Ltd,5061910,"1,793.76"
BEIS,UKAEA,18/09/2019,Hired Agency Staff - Rullion CMF/PO,Fusion,Rullion Engineering Ltd,5061911,"9,027.28"
BEIS,UKAEA,18/09/2019,Hired Agency Staff - Rullion CMF/PO,Fusion,Rullion Engineering Ltd,5061913,"3,539.00"
BEIS,UKAEA,16/09/2019,Engineering Goods,Other,Lucideon Limited,5061916,"10,250.00"
BEIS,UKAEA,16/09/2019,Professional Services,Fusion,Quartzelec Ltd,5061917,"59,176.08"
BEIS,UKAEA,18/09/2019,Hired Agency Staff - Rullion CMF/PO,Fusion,Rullion Engineering Ltd,5061918,"7,363.13"
BEIS,UKAEA,18/09/2019,Hired Agency Staff - Rullion CMF/PO,Fusion,Rullion Engineering Ltd,5061919,"4,444.44"
BEIS,UKAEA,16/09/2019,ICT,Fusion,The Mathworks,5061921,"1,800.00"
BEIS,UKAEA,16/09/2019,Engineering Goods,Fusion,Aalco Limited,5061922,950.00
BEIS,UKAEA,16/09/2019,Professional Services,Fusion,SA Group Ltd,5061924,"14,300.50"
BEIS,UKAEA,18/09/2019,Hired Agency Staff - Rullion CMF/PO,Fusion,Rullion Engineering Ltd,5061925,"7,055.45"
BEIS,UKAEA,18/09/2019,Hired Agency Staff - Rullion CMF/PO,Fusion,Rullion Engineering Ltd,5061926,"3,002.06"
BEIS,UKAEA,18/09/2019,Hired Agency Staff - Rullion CMF/PO,Other,Rullion Engineering Ltd,5061928,"8,609.76"
BEIS,UKAEA,16/09/2019,Communications,Support Services,The University Of Sheffield,5061932,840.00
BEIS,UKAEA,16/09/2019,Engineering Goods,Fusion,RS Components Ltd,5061933,698.46
BEIS,UKAEA,18/09/2019,Hired Agency Staff - Rullion CMF/PO,Support Services,Rullion Engineering Ltd,5061935,"4,476.13"
BEIS,UKAEA,16/09/2019,Other External Costs,Support Services,Paymaster (1836) Ltd RE:UKAEA Recharges,5061936,"10,739.96"
BEIS,UKAEA,16/09/2019,Engineering Goods,Fusion,RS Components Ltd,5061938,601.28
BEIS,UKAEA,16/09/2019,Research,Fusion,Sundry Supplier,5061939,930.00
BEIS,UKAEA,18/09/2019,Hired Agency Staff - Rullion CMF/PO,Fusion,Rullion Engineering Ltd,5061941,"7,637.26"
BEIS,UKAEA,20/09/2019,Office Solutions,Fusion,IOP Publishing Ltd - EUR,5061945,"3,555.47"
BEIS,UKAEA,20/09/2019,Office Solutions,Fusion,IOP Publishing Ltd - EUR,5061946,777.76
BEIS,UKAEA,16/09/2019,ICT,Support Services,British Telecommunications plc - VOIP Services,5061954,"1,862.90"
BEIS,UKAEA,16/09/2019,ICT,Support Services,British Telecommunications plc - VOIP Services,5061955,"1,079.46"
BEIS,UKAEA,16/09/2019,ICT,Support Services,British Telecommunications plc - VOIP Services,5061956,"4,967.55"
BEIS,UKAEA,16/09/2019,ICT,Support Services,British Telecommunications plc - VOIP Services,5061957,"1,461.89"
BEIS,UKAEA,16/09/2019,ICT,Support Services,British Telecommunications plc - VOIP Services,5061958,"5,942.12"
BEIS,UKAEA,16/09/2019,Engineering Goods,Other,Mouser Electronics,5061961,900.00
BEIS,UKAEA,18/09/2019,Hired Agency Staff - Rullion CMF/PO,Support Services,Rullion Engineering Ltd,5061962,"1,373.20"
BEIS,UKAEA,16/09/2019,Energy and Fuels,Property,EDF Energy,5061964,504.49
BEIS,UKAEA,16/09/2019,Energy and Fuels,Property,EDF Energy,5061965,"1,971.14"
BEIS,UKAEA,16/09/2019,Energy and Fuels,Property,EDF Energy,5061968,804.91
BEIS,UKAEA,16/09/2019,Energy and Fuels,Property,EDF Energy,5061973,"4,491.03"
BEIS,UKAEA,16/09/2019,Energy and Fuels,Property,EDF Energy,5061974,"29,506.19"
BEIS,UKAEA,16/09/2019,Energy and Fuels,Property,EDF Energy,5061975,518.05
BEIS,UKAEA,16/09/2019,Energy and Fuels,Property,EDF Energy,5061976,572.03
BEIS,UKAEA,16/09/2019,Energy and Fuels,Property,EDF Energy,5061977,"3,111.96"
BEIS,UKAEA,16/09/2019,Engineering Goods,Fusion,RS Components Ltd,5061978,698.87
BEIS,UKAEA,16/09/2019,Energy and Fuels,Property,EDF Energy,5061981,"40,718.99"
BEIS,UKAEA,16/09/2019,Engineering Goods,Fusion,Triangle Electronic Services,5061982,625.80
BEIS,UKAEA,16/09/2019,Energy and Fuels,Property,EDF Energy,5061986,"35,697.66"
BEIS,UKAEA,16/09/2019,Energy and Fuels,Property,EDF Energy,5061987,"5,183.96"
BEIS,UKAEA,16/09/2019,Engineering Goods,Fusion,Sundry Supplier,5061993,"2,040.00"
BEIS,UKAEA,16/09/2019,Energy and Fuels,Fusion,Scottish and Southern Energy Plc,5061994,"1,342.00"
BEIS,UKAEA,16/09/2019,Engineering Goods,Fusion,J & E Hall Ltd.,5061999,"1,008.34"
BEIS,UKAEA,18/09/2019,Hired Agency Staff - Rullion CMF/PO,Fusion,Rullion Engineering Ltd,5062001,"2,981.96"
BEIS,UKAEA,18/09/2019,Hired Agency Staff - Rullion CMF/PO,Fusion,Rullion Engineering Ltd,5062003,"3,060.69"
BEIS,UKAEA,18/09/2019,Hired Agency Staff - Rullion CMF/PO,Other,Rullion Engineering Ltd,5062004,"3,006.00"
BEIS,UKAEA,16/09/2019,Engineering Goods,Other,ODU-UK Ltd.,5062005,"1,617.23"
BEIS,UKAEA,18/09/2019,Hired Agency Staff - Rullion CMF/PO,Support Services,Rullion Engineering Ltd,5062006,"9,547.20"
BEIS,UKAEA,16/09/2019,Engineering Goods,Fusion,Farnell Electronic Components Ltd,5062011,574.98
BEIS,UKAEA,16/09/2019,Engineering Goods,Other,Edwards Limited,5062012,"2,029.80"
BEIS,UKAEA,16/09/2019,ICT,Fusion,Hexagon Metrology,5062015,"6,800.00"
BEIS,UKAEA,16/09/2019,Engineering Goods,Fusion,High Technology Sources Ltd,5062016,"2,950.00"
BEIS,UKAEA,18/09/2019,Hired Agency Staff - Rullion CMF/PO,Other,Rullion Engineering Ltd,5062017,"3,103.90"
BEIS,UKAEA,16/09/2019,Personnel Related,Support Services,CGI IT UK Limited,5062019,589.28
BEIS,UKAEA,16/09/2019,Engineering Goods,Fusion,Ind-Tech Ltd,5062022,988.56
BEIS,UKAEA,18/09/2019,Hired Agency Staff - Rullion CMF/PO,Fusion,Rullion Engineering Ltd,5062025,"2,950.38"
BEIS,UKAEA,16/09/2019,Professional Services,Support Services,Burges Salmon,5062026,"1,782.96"
BEIS,UKAEA,16/09/2019,ICT,Fusion,SM Systems UK Ltd,5062027,"2,610.00"
BEIS,UKAEA,16/09/2019,ICT,Fusion,Dell Corporation Ltd,5062029,"5,690.00"
BEIS,UKAEA,16/09/2019,ICT,Fusion,Dell Corporation Ltd,5062030,"4,115.20"
BEIS,UKAEA,16/09/2019,ICT,Fusion,Millgate Limited,5062032,"2,811.32"
BEIS,UKAEA,16/09/2019,ICT,Fusion,Millgate Limited,5062034,-615.00
BEIS,UKAEA,18/09/2019,Hired Agency Staff - Rullion CMF/PO,Fusion,Rullion Engineering Ltd,5062035,"2,958.20"
BEIS,UKAEA,16/09/2019,Research,Fusion,University of Surrey,5062045,"2,187.50"
BEIS,UKAEA,16/09/2019,Engineering Goods,Fusion,John Caunt Scientific Limited,5062046,"1,883.00"
BEIS,UKAEA,18/09/2019,Hired Agency Staff - Rullion CMF/PO,Fusion,Rullion Engineering Ltd,5062048,"3,450.47"
BEIS,UKAEA,18/09/2019,Hired Agency Staff - Rullion CMF/PO,Support Services,Rullion Engineering Ltd,5062049,"1,679.20"
BEIS,UKAEA,16/09/2019,Engineering Goods,Fusion,FISHERSCIENTIFIC,5062050,729.12
BEIS,UKAEA,18/09/2019,Hired Agency Staff - Rullion CMF/PO,Fusion,Rullion Engineering Ltd,5062053,"1,540.20"
BEIS,UKAEA,18/09/2019,ICT,Property,Calibre Cabling Services Ltd.,5062054,"4,066.65"
BEIS,UKAEA,18/09/2019,Engineering Goods,Fusion,BOC Ltd,5062059,"1,263.60"
BEIS,UKAEA,18/09/2019,Engineering Goods,Fusion,BOC Ltd,5062060,"62,279.98"
BEIS,UKAEA,18/09/2019,Engineering Goods,Fusion,ICS Cool Energy Ltd,5062061,"1,268.57"
BEIS,UKAEA,18/09/2019,Hired Agency Staff - Rullion CMF/PO,Support Services,Rullion Engineering Ltd,5062062,"12,674.94"
BEIS,UKAEA,18/09/2019,ICT,Fusion,Beckhoff Automation Ltd,5062070,545.60
BEIS,UKAEA,18/09/2019,Hired Agency Staff - Rullion CMF/PO,Property,Rullion Engineering Ltd,5062072,"2,138.95"
BEIS,UKAEA,18/09/2019,Learning and Development,Other,HMK Technical Services Ltd.,5062073,-800.00
BEIS,UKAEA,18/09/2019,Waste Management,Property,Grundon Waste Management Ltd,5062076,788.32
BEIS,UKAEA,18/09/2019,Waste Management,Fusion,Grundon Waste Management Ltd,5062077,706.75
BEIS,UKAEA,18/09/2019,Hired Agency Staff - Rullion CMF/PO,Fusion,Rullion Engineering Ltd,5062079,"5,259.78"
BEIS,UKAEA,18/09/2019,Personnel Related,Other,Webrecruit,5062080,"1,554.00"
BEIS,UKAEA,18/09/2019,Personnel Related,Fusion,Webrecruit,5062081,725.00
BEIS,UKAEA,18/09/2019,Personnel Related,Fusion,Webrecruit,5062082,735.00
BEIS,UKAEA,18/09/2019,Personnel Related,Other,Webrecruit,5062084,735.00
BEIS,UKAEA,18/09/2019,Personnel Related,Fusion,Webrecruit,5062085,733.00
BEIS,UKAEA,18/09/2019,Hired Agency Staff - Rullion CMF/PO,Fusion,Rullion Engineering Ltd,5062090,"5,208.70"
BEIS,UKAEA,18/09/2019,Engineering Goods,Fusion,RS Components Ltd,5062092,691.17
BEIS,UKAEA,18/09/2019,Engineering Goods,Fusion,Swagelok London,5062093,567.24
BEIS,UKAEA,18/09/2019,Hired Agency Staff - Rullion CMF/PO,Support Services,Rullion Engineering Ltd,5062094,"5,760.30"
BEIS,UKAEA,18/09/2019,Engineering Goods,Fusion,Dura Composites Ltd,5062096,868.29
BEIS,UKAEA,18/09/2019,Hired Agency Staff - Rullion CMF/PO,Fusion,Rullion Engineering Ltd,5062099,"3,859.20"
BEIS,UKAEA,18/09/2019,Hired Agency Staff - Rullion CMF/PO,Fusion,Rullion Engineering Ltd,5062100,"4,342.17"
BEIS,UKAEA,18/09/2019,Hired Agency Staff - Rullion CMF/PO,Fusion,Rullion Engineering Ltd,5062101,"3,038.04"
BEIS,UKAEA,18/09/2019,Engineering Goods,Other,Precision Ceramics,5062102,"1,811.30"
BEIS,UKAEA,18/09/2019,Hired Agency Staff - Rullion CMF/PO,Fusion,Rullion Engineering Ltd,5062103,"3,085.81"
BEIS,UKAEA,18/09/2019,Hired Agency Staff - Rullion CMF/PO,Fusion,Rullion Engineering Ltd,5062104,"3,643.67"
BEIS,UKAEA,18/09/2019,Professional Services,Fusion,Cavendish Nuclear Limited,5062107,"7,012.15"
BEIS,UKAEA,18/09/2019,Professional Services,Fusion,Cavendish Nuclear Limited,5062108,695.37
BEIS,UKAEA,18/09/2019,Hired Agency Staff - Rullion CMF/PO,Fusion,Rullion Engineering Ltd,5062112,"5,769.75"
BEIS,UKAEA,18/09/2019,Engineering Goods,Fusion,Thorlabs Ltd,5062115,988.59
BEIS,UKAEA,18/09/2019,Hired Agency Staff - Rullion CMF/PO,Fusion,Rullion Engineering Ltd,5062116,"4,136.60"
BEIS,UKAEA,18/09/2019,Hired Agency Staff - Rullion CMF/PO,Fusion,Rullion Engineering Ltd,5062117,"4,767.97"
BEIS,UKAEA,18/09/2019,Hired Agency Staff - Rullion CMF/PO,Fusion,Rullion Engineering Ltd,5062118,"6,721.36"
BEIS,UKAEA,18/09/2019,Construction,Property,PMS Oxford Construction Services,5062119,"2,600.83"
BEIS,UKAEA,18/09/2019,Construction,Property,PMS Oxford Construction Services,5062119,"5,024.85"
BEIS,UKAEA,18/09/2019,Construction,Fusion,PMS Oxford Construction Services,5062119,"6,608.03"
BEIS,UKAEA,18/09/2019,Construction,Property,PMS Oxford Construction Services,5062119,"18,008.48"
BEIS,UKAEA,18/09/2019,Professional Services,Fusion,DBD Limited,5062124,"16,015.75"
BEIS,UKAEA,18/09/2019,Hired Agency Staff - Rullion CMF/PO,Fusion,Rullion Engineering Ltd,5062125,"1,125.00"
BEIS,UKAEA,18/09/2019,Engineering Goods,Fusion,D-Tacq Solutions Ltd,5062126,650.00
BEIS,UKAEA,18/09/2019,Engineering Goods,Fusion,Wood Nuclear Ltd,5062127,"29,287.63"
BEIS,UKAEA,18/09/2019,Engineering Goods,Fusion,Wood Nuclear Ltd,5062128,"19,420.72"
BEIS,UKAEA,18/09/2019,Professional Services,Fusion,Wood Nuclear Ltd,5062129,"20,195.36"
BEIS,UKAEA,18/09/2019,Engineering Goods,Fusion,Wood Nuclear Ltd,5062129,"21,627.75"
BEIS,UKAEA,18/09/2019,Hired Agency Staff - Rullion CMF/PO,Support Services,Rullion Engineering Ltd,5062133,942.82
BEIS,UKAEA,18/09/2019,Hired Agency Staff - Rullion CMF/PO,Support Services,Rullion Engineering Ltd,5062134,"4,282.23"
BEIS,UKAEA,18/09/2019,ICT,Support Services,Nimble Elearning Ltd,5062136,645.84
BEIS,UKAEA,18/09/2019,Hired Agency Staff - Rullion CMF/PO,Other,Rullion Engineering Ltd,5062140,"4,269.57"
BEIS,UKAEA,18/09/2019,Professional Services,Support Services,Faithful+Gould,5062142,"8,143.23"
BEIS,UKAEA,18/09/2019,Professional Services,Support Services,Faithful+Gould,5062142,"20,845.59"
BEIS,UKAEA,18/09/2019,Hired Agency Staff - Rullion CMF/PO,Support Services,Rullion Engineering Ltd,5062143,620.87
BEIS,UKAEA,18/09/2019,Hired Agency Staff - Rullion CMF/PO,Property,Rullion Engineering Ltd,5062144,"2,237.30"
BEIS,UKAEA,18/09/2019,Hired Agency Staff - Rullion CMF/PO,Fusion,Rullion Engineering Ltd,5062145,"9,306.36"
BEIS,UKAEA,18/09/2019,Hired Agency Staff - Rullion CMF/PO,Other,Rullion Engineering Ltd,5062146,"7,912.08"
BEIS,UKAEA,18/09/2019,Hired Agency Staff - Rullion CMF/PO,Other,Rullion Engineering Ltd,5062147,"8,088.00"
BEIS,UKAEA,18/09/2019,Hired Agency Staff - Rullion CMF/PO,Other,Rullion Engineering Ltd,5062148,"4,736.88"
BEIS,UKAEA,18/09/2019,Hired Agency Staff - Rullion CMF/PO,Fusion,Rullion Engineering Ltd,5062149,"1,425.00"
BEIS,UKAEA,18/09/2019,Hired Agency Staff - Rullion CMF/PO,Fusion,Rullion Engineering Ltd,5062150,"5,844.96"
BEIS,UKAEA,18/09/2019,Hired Agency Staff - Rullion CMF/PO,Fusion,Rullion Engineering Ltd,5062154,"4,216.71"
BEIS,UKAEA,18/09/2019,Engineering Goods,Fusion,GEMS Sensors & Controls,5062156,"1,554.80"
BEIS,UKAEA,18/09/2019,Engineering Goods,Fusion,Swagelok London,5062158,666.54
BEIS,UKAEA,18/09/2019,Engineering Goods,Fusion,Vat Vacuum Products Ltd,5062160,517.00
BEIS,UKAEA,18/09/2019,Engineering Goods,Fusion,Swagelok London,5062163,"6,308.47"
BEIS,UKAEA,18/09/2019,Hired Agency Staff - Rullion CMF/PO,Fusion,Rullion Engineering Ltd,5062164,"5,388.00"
BEIS,UKAEA,18/09/2019,Engineering Goods,Fusion,Swagelok London,5062165,532.19
BEIS,UKAEA,18/09/2019,Hired Agency Staff - Rullion CMF/PO,Fusion,Rullion Engineering Ltd,5062166,"3,445.89"
BEIS,UKAEA,18/09/2019,Hired Agency Staff - Rullion CMF/PO,Fusion,Rullion Engineering Ltd,5062167,"5,909.12"
BEIS,UKAEA,18/09/2019,Engineering Goods,Fusion,Acrona Engineering Ltd,5062169,513.72
BEIS,UKAEA,18/09/2019,Professional Services,Fusion,Tessella Ltd,5062171,"12,138.00"
BEIS,UKAEA,18/09/2019,Engineering Goods,Fusion,Swagelok London,5062174,588.70
BEIS,UKAEA,18/09/2019,Hired Agency Staff - Rullion CMF/PO,Fusion,Rullion Engineering Ltd,5062176,"6,305.84"
BEIS,UKAEA,18/09/2019,Hired Agency Staff - Rullion CMF/PO,Fusion,Rullion Engineering Ltd,5062177,"4,875.59"
BEIS,UKAEA,18/09/2019,Hired Agency Staff - Rullion CMF/PO,Support Services,Rullion Engineering Ltd,5062179,"6,425.57"
BEIS,UKAEA,18/09/2019,Hired Agency Staff - Rullion CMF/PO,Support Services,Rullion Engineering Ltd,5062182,977.35
BEIS,UKAEA,18/09/2019,Hired Agency Staff - Rullion CMF/PO,Support Services,Rullion Engineering Ltd,5062183,"4,122.77"
BEIS,UKAEA,18/09/2019,Hired Agency Staff - Rullion CMF/PO,Support Services,Rullion Engineering Ltd,5062184,"3,448.15"
BEIS,UKAEA,18/09/2019,Hired Agency Staff - Rullion CMF/PO,Fusion,Rullion Engineering Ltd,5062188,"1,477.17"
BEIS,UKAEA,18/09/2019,Professional Services,Other,Aquila Nuclear Engineering Ltd,5062189,"73,387.49"
BEIS,UKAEA,18/09/2019,Learning and Development,Fusion,University of Cambridge Department of Engineering,5062191,804.00
BEIS,UKAEA,18/09/2019,Engineering Goods,Fusion,Yokogawa Measurement Technologies,5062193,"3,133.76"
BEIS,UKAEA,18/09/2019,Engineering Goods,Fusion,Yokogawa Measurement Technologies,5062194,617.66
BEIS,UKAEA,18/09/2019,Professional Services,Fusion,Cavendish Nuclear Limited,5062195,"4,086.25"
BEIS,UKAEA,18/09/2019,Hired Agency Staff - Rullion CMF/PO,Support Services,Rullion Engineering Ltd,5062196,"1,677.68"
BEIS,UKAEA,18/09/2019,Construction,Other,Midas Construction Limited,5062197,"85,491.00"
BEIS,UKAEA,18/09/2019,Construction,Other,Midas Construction Limited,5062197,"393,208.00"
BEIS,UKAEA,18/09/2019,Hired Agency Staff - Rullion CMF/PO,Fusion,Rullion Engineering Ltd,5062198,"2,245.50"
BEIS,UKAEA,18/09/2019,Hired Agency Staff - Rullion CMF/PO,Support Services,Rullion Engineering Ltd,5062199,"4,551.34"
BEIS,UKAEA,18/09/2019,Hired Agency Staff - Rullion CMF/PO,Fusion,Rullion Engineering Ltd,5062200,"6,055.41"
BEIS,UKAEA,18/09/2019,Hired Agency Staff - Rullion CMF/PO,Fusion,Rullion Engineering Ltd,5062202,"2,252.25"
BEIS,UKAEA,18/09/2019,Hired Agency Staff - Rullion CMF/PO,Fusion,Rullion Engineering Ltd,5062205,"1,812.00"
BEIS,UKAEA,18/09/2019,Hired Agency Staff - Rullion CMF/PO,Other,Rullion Engineering Ltd,5062209,"2,099.01"
BEIS,UKAEA,18/09/2019,Hired Agency Staff - Rullion CMF/PO,Other,Rullion Engineering Ltd,5062210,"4,548.32"
BEIS,UKAEA,18/09/2019,Hired Agency Staff - Rullion CMF/PO,Fusion,Rullion Engineering Ltd,5062211,"6,214.11"
BEIS,UKAEA,18/09/2019,Professional Services,Property,Carter Jonas LLP,5062212,"3,800.00"
BEIS,UKAEA,18/09/2019,Engineering Goods,Fusion,BOC Ltd,5062214,-976.09
BEIS,UKAEA,18/09/2019,Engineering Goods,Fusion,Sundry Supplier,5062219,"2,070.00"
BEIS,UKAEA,18/09/2019,Professional Services,Other,James Fisher Nuclear Limited,5062221,"23,750.00"
BEIS,UKAEA,18/09/2019,Engineering Goods,Fusion,RS Components Ltd,5062223,711.32
BEIS,UKAEA,18/09/2019,Engineering Goods,Fusion,RS Components Ltd,5062223,831.54
BEIS,UKAEA,18/09/2019,Professional Services,Fusion,RCD Lockinge Ltd,5062224,"2,125.68"
BEIS,UKAEA,18/09/2019,Professional Services,Fusion,RCD Lockinge Ltd,5062225,"22,488.25"
BEIS,UKAEA,18/09/2019,Professional Services,Other,RCD Lockinge Ltd,5062226,"1,556.75"
BEIS,UKAEA,18/09/2019,Engineering Goods,Other,RK International Machine Tools Ltd,5062228,"1,415.00"
BEIS,UKAEA,18/09/2019,Engineering Goods,Other,RK International Machine Tools Ltd,5062229,"17,660.00"
BEIS,UKAEA,18/09/2019,Professional Services,Support Services,Morton Fraser,5062231,"2,609.50"
BEIS,UKAEA,18/09/2019,Professional Services,Support Services,Morton Fraser,5062232,"3,750.00"
BEIS,UKAEA,18/09/2019,Office Solutions,Fusion,Lyreco UK Limited,5062234,708.88
BEIS,UKAEA,18/09/2019,Waste Management,Fusion,Arco Ltd,5062235,"2,047.00"
BEIS,UKAEA,18/09/2019,Professional Services,Fusion,Socotec UK Limited,5062236,"1,121.06"
BEIS,UKAEA,18/09/2019,Professional Services,Fusion,Socotec UK Limited,5062236,"6,013.68"
BEIS,UKAEA,18/09/2019,Hired Agency Staff - Rullion CMF/PO,Fusion,Rullion Engineering Ltd,5062240,651.02
BEIS,UKAEA,18/09/2019,Professional Services,Support Services,Equiniti,5062242,"92,698.99"
BEIS,UKAEA,18/09/2019,Hired Agency Staff - Rullion CMF/PO,Fusion,Rullion Engineering Ltd,5062243,"1,839.60"
BEIS,UKAEA,26/09/2019,Hired Agency Staff - Rullion CMF/PO,Support Services,Rullion Engineering Ltd,5062245,"8,472.34"
BEIS,UKAEA,26/09/2019,Hired Agency Staff - Rullion CMF/PO,Support Services,Rullion Engineering Ltd,5062246,"9,931.91"
BEIS,UKAEA,23/09/2019,ICT,Support Services,Calibre Cabling Services Ltd.,5062250,"2,247.04"
BEIS,UKAEA,23/09/2019,ICT,Other,Aztex Solutions Ltd,5062251,702.72
BEIS,UKAEA,23/09/2019,ICT,Fusion,Calibre Cabling Services Ltd.,5062252,"1,322.60"
BEIS,UKAEA,23/09/2019,ICT,Fusion,Calibre Cabling Services Ltd.,5062254,"1,854.92"
BEIS,UKAEA,23/09/2019,Professional Services,Property,Oxfordshire County Council,5062255,"2,040.00"
BEIS,UKAEA,23/09/2019,Professional Services,Property,Oxfordshire County Council,5062255,"125,000.00"
BEIS,UKAEA,26/09/2019,Hired Agency Staff - Rullion CMF/PO,Support Services,Rullion Engineering Ltd,5062258,"1,841.70"
BEIS,UKAEA,19/09/2019,Engineering Goods,Other,IDOM,5062260,"26,376.75"
BEIS,UKAEA,26/09/2019,Hired Agency Staff - Rullion CMF/PO,Support Services,Rullion Engineering Ltd,5062261,"1,663.20"
BEIS,UKAEA,26/09/2019,Hired Agency Staff - Rullion CMF/PO,Other,Rullion Engineering Ltd,5062262,"3,531.03"
BEIS,UKAEA,26/09/2019,Hired Agency Staff - Rullion CMF/PO,Other,Rullion Engineering Ltd,5062263,"3,831.98"
BEIS,UKAEA,23/09/2019,Engineering Goods,Fusion,Seetru Limited,5062265,"1,221.92"
BEIS,UKAEA,23/09/2019,Office Solutions,Support Services,Zuna Web Limited,5062266,967.50
BEIS,UKAEA,23/09/2019,Travel,Other,University of Liverpool,5062267,615.00
BEIS,UKAEA,26/09/2019,Hired Agency Staff - Rullion CMF/PO,Support Services,Rullion Engineering Ltd,5062273,"15,552.00"
BEIS,UKAEA,26/09/2019,Hired Agency Staff - Rullion CMF/PO,Fusion,Rullion Engineering Ltd,5062274,"1,358.10"
BEIS,UKAEA,26/09/2019,Hired Agency Staff - Rullion CMF/PO,Support Services,Rullion Engineering Ltd,5062275,"1,313.00"
BEIS,UKAEA,26/09/2019,Hired Agency Staff - Rullion CMF/PO,Support Services,Rullion Engineering Ltd,5062279,"5,400.93"
BEIS,UKAEA,26/09/2019,Hired Agency Staff - Rullion CMF/PO,Support Services,Rullion Engineering Ltd,5062288,"10,010.88"
BEIS,UKAEA,26/09/2019,Hired Agency Staff - Rullion CMF/PO,Support Services,Rullion Engineering Ltd,5062297,"3,814.40"
BEIS,UKAEA,26/09/2019,Hired Agency Staff - Rullion CMF/PO,Fusion,Rullion Engineering Ltd,5062298,"5,316.22"
BEIS,UKAEA,26/09/2019,Hired Agency Staff - Rullion CMF/PO,Other,Rullion Engineering Ltd,5062299,"7,658.21"
BEIS,UKAEA,26/09/2019,Hired Agency Staff - Rullion CMF/PO,Other,Rullion Engineering Ltd,5062300,720.00
BEIS,UKAEA,26/09/2019,Hired Agency Staff - Rullion CMF/PO,Other,Rullion Engineering Ltd,5062301,"4,389.21"
BEIS,UKAEA,26/09/2019,Hired Agency Staff - Rullion CMF/PO,Support Services,Rullion Engineering Ltd,5062305,"11,062.33"
BEIS,UKAEA,26/09/2019,Hired Agency Staff - Rullion CMF/PO,Support Services,Rullion Engineering Ltd,5062309,"2,647.83"
BEIS,UKAEA,26/09/2019,Hired Agency Staff - Rullion CMF/PO,Support Services,Rullion Engineering Ltd,5062310,"9,717.75"
BEIS,UKAEA,26/09/2019,Hired Agency Staff - Rullion CMF/PO,Other,Rullion Engineering Ltd,5062316,"8,445.40"
BEIS,UKAEA,26/09/2019,Hired Agency Staff - Rullion CMF/PO,Support Services,Rullion Engineering Ltd,5062317,"10,189.52"
BEIS,UKAEA,26/09/2019,Hired Agency Staff - Rullion CMF/PO,Fusion,Rullion Engineering Ltd,5062318,"1,180.00"
BEIS,UKAEA,26/09/2019,Hired Agency Staff - Rullion CMF/PO,Fusion,Rullion Engineering Ltd,5062319,"3,017.30"
BEIS,UKAEA,26/09/2019,Hired Agency Staff - Rullion CMF/PO,Fusion,Rullion Engineering Ltd,5062321,"2,964.54"
BEIS,UKAEA,26/09/2019,Hired Agency Staff - Rullion CMF/PO,Fusion,Rullion Engineering Ltd,5062322,"6,076.52"
BEIS,UKAEA,26/09/2019,Hired Agency Staff - Rullion CMF/PO,Other,Rullion Engineering Ltd,5062323,"7,694.30"
BEIS,UKAEA,26/09/2019,Hired Agency Staff - Rullion CMF/PO,Other,Rullion Engineering Ltd,5062324,"7,102.33"
BEIS,UKAEA,26/09/2019,Facilities,Property,Lorne Stewart Plc,5062325,523.30
BEIS,UKAEA,26/09/2019,Hired Agency Staff - Rullion CMF/PO,Fusion,Rullion Engineering Ltd,5062326,"2,365.14"
BEIS,UKAEA,26/09/2019,Hired Agency Staff - Rullion CMF/PO,Support Services,Rullion Engineering Ltd,5062327,"1,447.71"
BEIS,UKAEA,26/09/2019,Facilities,Fusion,Lorne Stewart Plc,5062328,"3,647.19"
BEIS,UKAEA,26/09/2019,Facilities,Fusion,Lorne Stewart Plc,5062329,"19,508.64"
BEIS,UKAEA,26/09/2019,Facilities,Property,Lorne Stewart Plc,5062332,"27,440.19"
BEIS,UKAEA,26/09/2019,Facilities,Fusion,Lorne Stewart Plc,5062333,"3,125.28"
BEIS,UKAEA,26/09/2019,Hired Agency Staff - Rullion CMF/PO,Fusion,Rullion Engineering Ltd,5062335,"1,379.25"
BEIS,UKAEA,26/09/2019,Facilities,Property,Lorne Stewart Plc,5062336,"20,238.24"
BEIS,UKAEA,26/09/2019,Hired Agency Staff - Rullion CMF/PO,Fusion,Rullion Engineering Ltd,5062337,"1,103.52"
BEIS,UKAEA,26/09/2019,Hired Agency Staff - Rullion CMF/PO,Support Services,Rullion Engineering Ltd,5062338,"1,154.81"
BEIS,UKAEA,26/09/2019,Hired Agency Staff - Rullion CMF/PO,Fusion,Rullion Engineering Ltd,5062339,"4,163.64"
BEIS,UKAEA,26/09/2019,Hired Agency Staff - Rullion CMF/PO,Fusion,Rullion Engineering Ltd,5062341,"5,460.00"
BEIS,UKAEA,23/09/2019,Engineering Goods,Fusion,Pycko Scientific Limited,5062344,"32,641.00"
BEIS,UKAEA,23/09/2019,Office Solutions,Support Services,Hobs Reprographics Plc,5062346,648.00
BEIS,UKAEA,23/09/2019,Facilities,Fusion,Contact Fire & Security,5062348,994.00
BEIS,UKAEA,27/09/2019,Office Solutions,Fusion,IOP Publishing Ltd - EUR,5062349,"1,999.95"
BEIS,UKAEA,27/09/2019,Office Solutions,Fusion,IOP Publishing Ltd - EUR,5062351,"1,333.30"
BEIS,UKAEA,27/09/2019,Office Solutions,Fusion,IOP Publishing Ltd - EUR,5062352,"1,354.17"
BEIS,UKAEA,23/09/2019,ICT,Support Services,Vanix LLP,5062354,"5,086.54"
BEIS,UKAEA,23/09/2019,Waste Management,Fusion,Arco Ltd,5062355,"1,056.00"
BEIS,UKAEA,23/09/2019,Engineering Goods,Fusion,Aalco Limited,5062357,656.60
BEIS,UKAEA,26/09/2019,Hired Agency Staff - Rullion CMF/PO,Fusion,Rullion Engineering Ltd,5062358,"2,937.39"
BEIS,UKAEA,23/09/2019,ICT,Other,Aztex Solutions Ltd,5062359,"1,013.34"
BEIS,UKAEA,26/09/2019,Hired Agency Staff - Rullion CMF/PO,Support Services,Rullion Engineering Ltd,5062360,"10,776.39"
BEIS,UKAEA,26/09/2019,Hired Agency Staff - Rullion CMF/PO,Support Services,Rullion Engineering Ltd,5062361,"3,762.00"
BEIS,UKAEA,26/09/2019,Hired Agency Staff - Rullion CMF/PO,Fusion,Rullion Engineering Ltd,5062363,"4,006.80"
BEIS,UKAEA,26/09/2019,Hired Agency Staff - Rullion CMF/PO,Support Services,Rullion Engineering Ltd,5062364,"8,883.22"
BEIS,UKAEA,26/09/2019,Hired Agency Staff - Rullion CMF/PO,Fusion,Rullion Engineering Ltd,5062365,"3,294.40"
BEIS,UKAEA,26/09/2019,Hired Agency Staff - Rullion CMF/PO,Other,Rullion Engineering Ltd,5062366,"1,297.73"
BEIS,UKAEA,26/09/2019,Hired Agency Staff - Rullion CMF/PO,Fusion,Rullion Engineering Ltd,5062367,"4,702.52"
BEIS,UKAEA,26/09/2019,Hired Agency Staff - Rullion CMF/PO,Fusion,Rullion Engineering Ltd,5062368,"3,435.54"
BEIS,UKAEA,26/09/2019,Hired Agency Staff - Rullion CMF/PO,Support Services,Rullion Engineering Ltd,5062371,"1,897.44"
BEIS,UKAEA,23/09/2019,Professional Services,Fusion,Jacobs U.K. Limited,5062372,"8,662.50"
BEIS,UKAEA,23/09/2019,Professional Services,Support Services,BDO LLP,5062373,"2,236.00"
BEIS,UKAEA,23/09/2019,Operational Goods,Support Services,South East Workwear Ltd,5062377,"1,167.52"
BEIS,UKAEA,23/09/2019,Engineering Goods,Fusion,A W Stokes & Son (Drums) Ltd,5062378,"6,952.00"
BEIS,UKAEA,26/09/2019,Hired Agency Staff - Rullion CMF/PO,Support Services,Rullion Engineering Ltd,5062380,"8,696.87"
BEIS,UKAEA,26/09/2019,Hired Agency Staff - Rullion CMF/PO,Fusion,Rullion Engineering Ltd,5062381,"1,490.00"
BEIS,UKAEA,26/09/2019,Hired Agency Staff - Rullion CMF/PO,Fusion,Rullion Engineering Ltd,5062382,"3,139.82"
BEIS,UKAEA,26/09/2019,Hired Agency Staff - Rullion CMF/PO,Fusion,Rullion Engineering Ltd,5062383,"4,628.62"
BEIS,UKAEA,26/09/2019,Hired Agency Staff - Rullion CMF/PO,Fusion,Rullion Engineering Ltd,5062384,"1,423.51"
BEIS,UKAEA,23/09/2019,Office Solutions,Support Services,Hobs Reprographics Plc,5062385,832.15
BEIS,UKAEA,23/09/2019,Engineering Goods,Other,Ind-Tech Ltd,5062386,652.44
BEIS,UKAEA,26/09/2019,Hired Agency Staff - Rullion CMF/PO,Support Services,Rullion Engineering Ltd,5062387,"3,440.98"
BEIS,UKAEA,23/09/2019,Office Solutions,Support Services,Hobs Reprographics Plc,5062389,"1,363.04"
BEIS,UKAEA,26/09/2019,Hired Agency Staff - Rullion CMF/PO,Fusion,Rullion Engineering Ltd,5062390,"2,931.07"
BEIS,UKAEA,23/09/2019,Professional Services,Other,Frazer Nash Consultancy,5062391,"6,463.95"
BEIS,UKAEA,26/09/2019,Hired Agency Staff - Rullion CMF/PO,Support Services,Rullion Engineering Ltd,5062392,935.48
BEIS,UKAEA,26/09/2019,Hired Agency Staff - Rullion CMF/PO,Fusion,Rullion Engineering Ltd,5062399,"4,716.00"
BEIS,UKAEA,23/09/2019,Engineering Goods,Fusion,Agilent Technologies LDA UK Limited,5062402,"16,157.90"
BEIS,UKAEA,23/09/2019,Engineering Goods,Fusion,RS Components Ltd,5062403,831.54
BEIS,UKAEA,26/09/2019,Hired Agency Staff - Rullion CMF/PO,Fusion,Rullion Engineering Ltd,5062409,"1,372.50"
BEIS,UKAEA,26/09/2019,Hired Agency Staff - Rullion CMF/PO,Fusion,Rullion Engineering Ltd,5062410,"2,082.00"
BEIS,UKAEA,23/09/2019,Learning and Development,Support Services,Nafems Ltd,5062419,"2,255.48"
BEIS,UKAEA,26/09/2019,Hired Agency Staff - Rullion CMF/PO,Other,Rullion Engineering Ltd,5062422,"1,010.63"
BEIS,UKAEA,23/09/2019,Professional Services,Support Services,Windich Legal Ltd,5062423,"1,630.20"
BEIS,UKAEA,26/09/2019,Hired Agency Staff - Rullion CMF/PO,Support Services,Rullion Engineering Ltd,5062424,927.60
BEIS,UKAEA,26/09/2019,Hired Agency Staff - Rullion CMF/PO,Fusion,Rullion Engineering Ltd,5062425,"3,566.25"
BEIS,UKAEA,26/09/2019,Hired Agency Staff - Rullion CMF/PO,Fusion,Rullion Engineering Ltd,5062426,"5,414.72"
BEIS,UKAEA,23/09/2019,Engineering Goods,Fusion,RS Components Ltd,5062428,"1,264.71"
BEIS,UKAEA,23/09/2019,Facilities,Property,Bidwells LLP,5062429,"22,116.00"
BEIS,UKAEA,23/09/2019,Office Solutions,Support Services,Annodata Business Communications,5062432,513.44
BEIS,UKAEA,26/09/2019,Professional Services,Fusion,Trasys International G E I E,5062434,"9,453.15"
BEIS,UKAEA,26/09/2019,Professional Services,Fusion,Trasys International G E I E,5062435,"8,102.70"
BEIS,UKAEA,23/09/2019,Engineering Goods,Other,Hutton Engineering (Precision) Ltd,5062437,"1,198.02"
BEIS,UKAEA,23/09/2019,Engineering Goods,Other,Global Robots Ltd,5062438,"1,632.48"
BEIS,UKAEA,23/09/2019,Engineering Goods,Other,A W Clarke,5062439,724.30
BEIS,UKAEA,26/09/2019,Hired Agency Staff - Rullion CMF/PO,Support Services,Rullion Engineering Ltd,5062440,"1,762.58"
BEIS,UKAEA,26/09/2019,Hired Agency Staff - Rullion CMF/PO,Other,Rullion Engineering Ltd,5062441,"9,338.85"
BEIS,UKAEA,26/09/2019,Hired Agency Staff - Rullion CMF/PO,Support Services,Rullion Engineering Ltd,5062442,"7,500.00"
BEIS,UKAEA,26/09/2019,Hired Agency Staff - Rullion CMF/PO,Fusion,Rullion Engineering Ltd,5062443,"5,151.60"
BEIS,UKAEA,26/09/2019,Hired Agency Staff - Rullion CMF/PO,Fusion,Rullion Engineering Ltd,5062446,"2,378.39"
BEIS,UKAEA,23/09/2019,Engineering Goods,Fusion,Trescal Limited,5062450,850.00
BEIS,UKAEA,23/09/2019,Personnel Related,Fusion,London Uni. Purchasing Consortium,5062451,"4,725.00"
BEIS,UKAEA,26/09/2019,Hired Agency Staff - Rullion CMF/PO,Fusion,Rullion Engineering Ltd,5062452,"4,890.48"
BEIS,UKAEA,26/09/2019,Hired Agency Staff - Rullion CMF/PO,Fusion,Rullion Engineering Ltd,5062453,"1,930.08"
BEIS,UKAEA,23/09/2019,Engineering Goods,Other,Prime Av Ltd,5062457,850.00
BEIS,UKAEA,26/09/2019,Hired Agency Staff - Rullion CMF/PO,Other,Rullion Engineering Ltd,5062458,"4,912.25"
BEIS,UKAEA,26/09/2019,Hired Agency Staff - Rullion CMF/PO,Other,Rullion Engineering Ltd,5062459,"8,581.12"
BEIS,UKAEA,26/09/2019,Engineering Goods,Fusion,BOC Ltd,5062462,"3,910.05"
BEIS,UKAEA,23/09/2019,ICT,Fusion,Rogue Wave Software UK Ltd,5062463,567.00
BEIS,UKAEA,23/09/2019,ICT,Fusion,Rogue Wave Software UK Ltd,5062463,"2,268.00"
BEIS,UKAEA,23/09/2019,Facilities,Fusion,New Pig Ltd,5062467,850.50
BEIS,UKAEA,26/09/2019,Hired Agency Staff - Rullion CMF/PO,Fusion,Rullion Engineering Ltd,5062470,"8,692.91"
BEIS,UKAEA,26/09/2019,Hired Agency Staff - Rullion CMF/PO,Fusion,Rullion Engineering Ltd,5062471,"4,953.08"
BEIS,UKAEA,26/09/2019,Hired Agency Staff - Rullion CMF/PO,Fusion,Rullion Engineering Ltd,5062472,"8,594.74"
BEIS,UKAEA,26/09/2019,Hired Agency Staff - Rullion CMF/PO,Support Services,Rullion Engineering Ltd,5062473,"7,722.00"
BEIS,UKAEA,26/09/2019,Hired Agency Staff - Rullion CMF/PO,Fusion,Rullion Engineering Ltd,5062474,"3,784.00"
BEIS,UKAEA,23/09/2019,Learning and Development,Support Services,Strathclyde University,5062475,"9,250.00"
BEIS,UKAEA,23/09/2019,Professional Services,Property,Ridge And Partners Llp,5062476,"1,920.00"
BEIS,UKAEA,26/09/2019,Hired Agency Staff - Rullion CMF/PO,Fusion,Rullion Engineering Ltd,5062477,"3,844.52"
BEIS,UKAEA,26/09/2019,Hired Agency Staff - Rullion CMF/PO,Other,Rullion Engineering Ltd,5062479,"3,704.47"
BEIS,UKAEA,26/09/2019,Hired Agency Staff - Rullion CMF/PO,Fusion,Rullion Engineering Ltd,5062480,"5,631.68"
BEIS,UKAEA,26/09/2019,Hired Agency Staff - Rullion CMF/PO,Other,Rullion Engineering Ltd,5062481,656.29
BEIS,UKAEA,23/09/2019,Engineering Goods,Fusion,Feedwater Ltd,5062482,581.50
BEIS,UKAEA,23/09/2019,Engineering Goods,Fusion,Feedwater Ltd,5062483,581.50
BEIS,UKAEA,23/09/2019,Engineering Goods,Fusion,Feedwater Ltd,5062484,581.50
BEIS,UKAEA,23/09/2019,Professional Services,Fusion,Feedwater Ltd,5062485,"1,944.00"
BEIS,UKAEA,23/09/2019,Professional Services,Fusion,Feedwater Ltd,5062486,719.80
BEIS,UKAEA,23/09/2019,Professional Services,Fusion,Feedwater Ltd,5062487,719.80
BEIS,UKAEA,26/09/2019,Hired Agency Staff - Rullion CMF/PO,Other,Rullion Engineering Ltd,5062488,"2,728.15"
BEIS,UKAEA,26/09/2019,Hired Agency Staff - Rullion CMF/PO,Other,Rullion Engineering Ltd,5062489,"1,224.50"
BEIS,UKAEA,26/09/2019,Hired Agency Staff - Rullion CMF/PO,Other,Rullion Engineering Ltd,5062490,"5,409.54"
BEIS,UKAEA,26/09/2019,Hired Agency Staff - Rullion CMF/PO,Other,Rullion Engineering Ltd,5062493,"3,347.04"
BEIS,UKAEA,26/09/2019,Hired Agency Staff - Rullion CMF/PO,Property,Rullion Engineering Ltd,5062496,"2,604.71"
BEIS,UKAEA,26/09/2019,Hired Agency Staff - Rullion CMF/PO,Property,Rullion Engineering Ltd,5062497,"1,584.38"
BEIS,UKAEA,26/09/2019,Hired Agency Staff - Rullion CMF/PO,Property,Rullion Engineering Ltd,5062498,"11,370.80"
BEIS,UKAEA,26/09/2019,Hired Agency Staff - Rullion CMF/PO,Support Services,Rullion Engineering Ltd,5062499,"3,860.84"
BEIS,UKAEA,26/09/2019,Hired Agency Staff - Rullion CMF/PO,Support Services,Rullion Engineering Ltd,5062500,"1,917.78"
BEIS,UKAEA,26/09/2019,Hired Agency Staff - Rullion CMF/PO,Support Services,Rullion Engineering Ltd,5062501,"9,405.00"
BEIS,UKAEA,26/09/2019,Hired Agency Staff - Rullion CMF/PO,Support Services,Rullion Engineering Ltd,5062502,"1,163.86"
BEIS,UKAEA,26/09/2019,Hired Agency Staff - Rullion CMF/PO,Fusion,Rullion Engineering Ltd,5062504,"1,125.00"
BEIS,UKAEA,23/09/2019,ICT,Support Services,Cisco Systems Finance International,5062508,"3,306.13"
BEIS,UKAEA,26/09/2019,Hired Agency Staff - Rullion CMF/PO,Fusion,Rullion Engineering Ltd,5062509,"4,265.06"
BEIS,UKAEA,23/09/2019,Office Solutions,Support Services,Fulton Paper,5062510,"2,720.00"
BEIS,UKAEA,23/09/2019,ICT,Support Services,Cisco Systems Finance International,5062511,"3,306.13"
BEIS,UKAEA,23/09/2019,Professional Services,Property,Blake Morgan LLP,5062513,950.00
BEIS,UKAEA,23/09/2019,Personnel Related,Other,Webrecruit,5062515,635.00
BEIS,UKAEA,23/09/2019,Personnel Related,Fusion,Webrecruit,5062516,735.00
BEIS,UKAEA,26/09/2019,Hired Agency Staff - Rullion CMF/PO,Support Services,Rullion Engineering Ltd,5062518,"2,786.56"
BEIS,UKAEA,23/09/2019,Personnel Related,Other,Webrecruit,5062519,735.00
BEIS,UKAEA,26/09/2019,Personnel Related,Fusion,Nuvia Limited,5062520,"23,596.50"
BEIS,UKAEA,23/09/2019,Engineering Goods,Fusion,Plastor,5062521,"2,877.43"
BEIS,UKAEA,26/09/2019,Engineering Goods,Fusion,BOC Ltd,5062530,"1,594.28"
BEIS,UKAEA,23/09/2019,Engineering Goods,Fusion,Pfeiffer Vacuum UK,5062532,"12,316.05"
BEIS,UKAEA,26/09/2019,Hired Agency Staff - Rullion CMF/PO,Fusion,Rullion Engineering Ltd,5062533,"1,280.40"
BEIS,UKAEA,26/09/2019,Hired Agency Staff - Rullion CMF/PO,Other,Rullion Engineering Ltd,5062536,"2,650.50"
BEIS,UKAEA,23/09/2019,Personnel Related,Other,Webrecruit,5062537,805.00
BEIS,UKAEA,23/09/2019,Facilities,Property,Securitas Security Services,5062542,"3,378.99"
BEIS,UKAEA,23/09/2019,Facilities,Property,Securitas Security Services,5062542,"4,487.29"
BEIS,UKAEA,23/09/2019,Facilities,Property,Securitas Security Services,5062542,"8,248.16"
BEIS,UKAEA,23/09/2019,Facilities,Property,Securitas Security Services,5062542,"21,249.08"
BEIS,UKAEA,23/09/2019,Facilities,Property,Securitas Security Services,5062542,"59,723.96"
BEIS,UKAEA,26/09/2019,Hired Agency Staff - Rullion CMF/PO,Fusion,Rullion Engineering Ltd,5062553,"2,216.76"
BEIS,UKAEA,23/09/2019,ICT,Support Services,Softcat Plc,5062554,"3,341.10"
BEIS,UKAEA,26/09/2019,Engineering Goods,Fusion,Pfeiffer Vacuum UK,5062556,886.30
BEIS,UKAEA,26/09/2019,Engineering Goods,Fusion,Acrona Engineering Ltd,5062559,"2,551.40"
BEIS,UKAEA,26/09/2019,Hired Agency Staff - Rullion CMF/PO,Other,Rullion Engineering Ltd,5062562,"2,543.10"
BEIS,UKAEA,26/09/2019,Hired Agency Staff - Rullion CMF/PO,Other,Rullion Engineering Ltd,5062564,"1,720.00"
BEIS,UKAEA,26/09/2019,Hired Agency Staff - Rullion CMF/PO,Fusion,Rullion Engineering Ltd,5062569,"2,612.52"
BEIS,UKAEA,26/09/2019,Hired Agency Staff - Rullion CMF/PO,Other,Rullion Engineering Ltd,5062570,"1,350.00"
BEIS,UKAEA,26/09/2019,Hired Agency Staff - Rullion CMF/PO,Fusion,Rullion Engineering Ltd,5062571,"2,483.30"
BEIS,UKAEA,26/09/2019,Hired Agency Staff - Rullion CMF/PO,Other,Rullion Engineering Ltd,5062572,"2,562.75"
BEIS,UKAEA,26/09/2019,Hired Agency Staff - Rullion CMF/PO,Other,Rullion Engineering Ltd,5062573,"1,350.00"
BEIS,UKAEA,26/09/2019,Construction,Other,Aquila Nuclear Engineering Ltd,5062574,"17,625.00"
BEIS,UKAEA,26/09/2019,Hired Agency Staff - Rullion CMF/PO,Fusion,Rullion Engineering Ltd,5062576,"3,986.25"
BEIS,UKAEA,26/09/2019,Hired Agency Staff - Rullion CMF/PO,Support Services,Rullion Engineering Ltd,5062577,"2,434.60"
BEIS,UKAEA,26/09/2019,Hired Agency Staff - Rullion CMF/PO,Support Services,Rullion Engineering Ltd,5062580,"3,820.37"
BEIS,UKAEA,26/09/2019,Hired Agency Staff - Rullion CMF/PO,Fusion,Rullion Engineering Ltd,5062582,"5,306.23"
BEIS,UKAEA,26/09/2019,Hired Agency Staff - Rullion CMF/PO,Fusion,Rullion Engineering Ltd,5062583,750.00
BEIS,UKAEA,26/09/2019,Hired Agency Staff - Rullion CMF/PO,Fusion,Rullion Engineering Ltd,5062584,"1,500.00"
BEIS,UKAEA,26/09/2019,Office Solutions,Other,Kyocera Document Solutions (U.K) Ltd.,5062585,"11,554.65"
BEIS,UKAEA,26/09/2019,Hired Agency Staff - Rullion CMF/PO,Fusion,Rullion Engineering Ltd,5062586,"5,185.52"
BEIS,UKAEA,26/09/2019,Hired Agency Staff - Rullion CMF/PO,Fusion,Rullion Engineering Ltd,5062587,"5,389.52"
BEIS,UKAEA,26/09/2019,Hired Agency Staff - Rullion CMF/PO,Fusion,Rullion Engineering Ltd,5062588,"4,849.94"
BEIS,UKAEA,26/09/2019,Hired Agency Staff - Rullion CMF/PO,Fusion,Rullion Engineering Ltd,5062589,"2,158.21"
BEIS,UKAEA,26/09/2019,Hired Agency Staff - Rullion CMF/PO,Fusion,Rullion Engineering Ltd,5062590,"1,936.98"
BEIS,UKAEA,26/09/2019,Hired Agency Staff - Rullion CMF/PO,Fusion,Rullion Engineering Ltd,5062591,"6,300.94"
BEIS,UKAEA,26/09/2019,Hired Agency Staff - Rullion CMF/PO,Fusion,Rullion Engineering Ltd,5062592,"5,329.52"
BEIS,UKAEA,26/09/2019,Hired Agency Staff - Rullion CMF/PO,Fusion,Rullion Engineering Ltd,5062593,"5,304.61"
BEIS,UKAEA,26/09/2019,Hired Agency Staff - Rullion CMF/PO,Fusion,Rullion Engineering Ltd,5062594,"5,347.51"
BEIS,UKAEA,26/09/2019,Hired Agency Staff - Rullion CMF/PO,Fusion,Rullion Engineering Ltd,5062595,"8,239.19"
BEIS,UKAEA,26/09/2019,Hired Agency Staff - Rullion CMF/PO,Fusion,Rullion Engineering Ltd,5062596,"4,448.27"
BEIS,UKAEA,26/09/2019,Hired Agency Staff - Rullion CMF/PO,Fusion,Rullion Engineering Ltd,5062597,"2,374.44"
BEIS,UKAEA,26/09/2019,Hired Agency Staff - Rullion CMF/PO,Fusion,Rullion Engineering Ltd,5062598,"1,500.00"
BEIS,UKAEA,26/09/2019,Hired Agency Staff - Rullion CMF/PO,Fusion,Rullion Engineering Ltd,5062599,"5,185.52"
BEIS,UKAEA,26/09/2019,Hired Agency Staff - Rullion CMF/PO,Fusion,Rullion Engineering Ltd,5062600,"5,271.00"
BEIS,UKAEA,26/09/2019,Hired Agency Staff - Rullion CMF/PO,Fusion,Rullion Engineering Ltd,5062601,"5,111.80"
BEIS,UKAEA,26/09/2019,Hired Agency Staff - Rullion CMF/PO,Fusion,Rullion Engineering Ltd,5062602,"5,076.00"
BEIS,UKAEA,26/09/2019,Hired Agency Staff - Rullion CMF/PO,Fusion,Rullion Engineering Ltd,5062603,"3,162.80"
BEIS,UKAEA,26/09/2019,Hired Agency Staff - Rullion CMF/PO,Fusion,Rullion Engineering Ltd,5062607,"5,316.00"
BEIS,UKAEA,26/09/2019,Hired Agency Staff - Rullion CMF/PO,Fusion,Rullion Engineering Ltd,5062608,"5,185.52"
BEIS,UKAEA,26/09/2019,Hired Agency Staff - Rullion CMF/PO,Fusion,Rullion Engineering Ltd,5062609,"5,329.52"
BEIS,UKAEA,26/09/2019,Logistics and Shipping,Fusion,Chemtech Waste Management,5062610,"8,339.00"
BEIS,UKAEA,26/09/2019,Hired Agency Staff - Rullion CMF/PO,Fusion,Rullion Engineering Ltd,5062611,"5,248.52"
BEIS,UKAEA,26/09/2019,Hired Agency Staff - Rullion CMF/PO,Fusion,Rullion Engineering Ltd,5062613,"3,454.39"
BEIS,UKAEA,26/09/2019,Hired Agency Staff - Rullion CMF/PO,Fusion,Rullion Engineering Ltd,5062614,"3,470.89"
BEIS,UKAEA,26/09/2019,Hired Agency Staff - Rullion CMF/PO,Fusion,Rullion Engineering Ltd,5062615,"6,161.73"
BEIS,UKAEA,26/09/2019,Hired Agency Staff - Rullion CMF/PO,Fusion,Rullion Engineering Ltd,5062616,"2,569.65"
BEIS,UKAEA,26/09/2019,Hired Agency Staff - Rullion CMF/PO,Support Services,Rullion Engineering Ltd,5062618,"2,394.97"
BEIS,UKAEA,26/09/2019,Professional Services,Support Services,Penningtons Manches Llp,5062619,"1,500.00"
BEIS,UKAEA,26/09/2019,Hired Agency Staff - Rullion CMF/PO,Other,Rullion Engineering Ltd,5062621,"3,346.76"
BEIS,UKAEA,26/09/2019,Hired Agency Staff - Rullion CMF/PO,Other,Rullion Engineering Ltd,5062622,"3,107.04"
BEIS,UKAEA,26/09/2019,Professional Services,Fusion,Icenta Controls Ltd,5062623,852.00
BEIS,UKAEA,26/09/2019,Facilities,Property,Baxter Storey Ltd.,5062624,"2,275.53"
BEIS,UKAEA,26/09/2019,Learning and Development,Property,Sundry Supplier,5062628,"2,091.00"
BEIS,UKAEA,26/09/2019,Energy and Fuels,Property,EDF Energy,5062629,"2,435.99"
BEIS,UKAEA,26/09/2019,Energy and Fuels,Property,Corona Energy Retail 4 Limited,5062630,"14,097.65"
BEIS,UKAEA,26/09/2019,Facilities,Fusion,Baxter Storey Ltd.,5062636,596.18
BEIS,UKAEA,26/09/2019,Hired Agency Staff - Rullion CMF/PO,Support Services,Rullion Engineering Ltd,5062639,"2,119.25"
BEIS,UKAEA,26/09/2019,Learning and Development,Support Services,GP Strategies Ltd.,5062642,685.80
BEIS,UKAEA,26/09/2019,Learning and Development,Support Services,GP Strategies Ltd.,5062643,810.00
BEIS,UKAEA,26/09/2019,Learning and Development,Support Services,GP Strategies Ltd.,5062644,"8,478.00"
BEIS,UKAEA,26/09/2019,Learning and Development,Support Services,GP Strategies Ltd.,5062645,"4,266.00"
BEIS,UKAEA,26/09/2019,Hired Agency Staff - Rullion CMF/PO,Support Services,Rullion Engineering Ltd,5062646,"1,731.73"
BEIS,UKAEA,26/09/2019,ICT,Other,Aztex Solutions Ltd,5062648,"2,026.68"
BEIS,UKAEA,26/09/2019,Hired Agency Staff - Rullion CMF/PO,Fusion,Rullion Engineering Ltd,5062650,"1,191.19"
BEIS,UKAEA,26/09/2019,Engineering Goods,Fusion,Qmx Laboratories Ltd,5062651,"1,183.00"
BEIS,UKAEA,26/09/2019,Facilities,Property,Securitas Security Services,5062655,"3,515.40"
BEIS,UKAEA,26/09/2019,Hired Agency Staff - Rullion CMF/PO,Support Services,Rullion Engineering Ltd,5062661,"7,955.09"
BEIS,UKAEA,26/09/2019,Professional Services,Fusion,WYG Management Systems Ltd,5062662,"7,452.27"
BEIS,UKAEA,26/09/2019,Professional Services,Fusion,WYG Management Systems Ltd,5062662,"9,479.87"
BEIS,UKAEA,26/09/2019,Professional Services,Other,WYG Management Systems Ltd,5062662,"10,721.67"
BEIS,UKAEA,26/09/2019,Professional Services,Support Services,WYG Management Systems Ltd,5062662,"16,848.52"
BEIS,UKAEA,26/09/2019,Hired Agency Staff - Rullion CMF/PO,Fusion,Rullion Engineering Ltd,5062671,"1,379.25"
BEIS,UKAEA,26/09/2019,Hired Agency Staff - Rullion CMF/PO,Support Services,Rullion Engineering Ltd,5062673,"7,543.80"
BEIS,UKAEA,26/09/2019,Hired Agency Staff - Rullion CMF/PO,Support Services,Rullion Engineering Ltd,5062674,"7,584.81"
BEIS,UKAEA,26/09/2019,Hired Agency Staff - Rullion CMF/PO,Fusion,Rullion Engineering Ltd,5062676,"5,376.55"
BEIS,UKAEA,26/09/2019,Hired Agency Staff - Rullion CMF/PO,Fusion,Rullion Engineering Ltd,5062677,"1,470.00"
BEIS,UKAEA,26/09/2019,Hired Agency Staff - Rullion CMF/PO,Fusion,Rullion Engineering Ltd,5062678,903.06
BEIS,UKAEA,26/09/2019,Hired Agency Staff - Rullion CMF/PO,Fusion,Rullion Engineering Ltd,5062679,"2,598.00"
BEIS,UKAEA,26/09/2019,Hired Agency Staff - Rullion CMF/PO,Other,Rullion Engineering Ltd,5062683,"1,500.00"
BEIS,UKAEA,26/09/2019,Hired Agency Staff - Rullion CMF/PO,Fusion,Rullion Engineering Ltd,5062684,"16,689.75"
BEIS,UKAEA,26/09/2019,Hired Agency Staff - Rullion CMF/PO,Fusion,Rullion Engineering Ltd,5062685,"5,127.00"
BEIS,UKAEA,26/09/2019,Hired Agency Staff - Rullion CMF/PO,Fusion,Rullion Engineering Ltd,5062686,"1,500.00"
BEIS,UKAEA,26/09/2019,Professional Services,Fusion,Morson International,5062689,"13,797.18"
BEIS,UKAEA,26/09/2019,Hired Agency Staff - Rullion CMF/PO,Fusion,Rullion Engineering Ltd,5062690,"1,050.00"
BEIS,UKAEA,26/09/2019,Engineering Goods,Support Services,Hurco Europe Ltd,5062691,692.10
BEIS,UKAEA,26/09/2019,Communications,Fusion,Sundry Supplier,5062693,"1,500.00"
BEIS,UKAEA,26/09/2019,Engineering Goods,Fusion,Linde Kryotechnik Ag,5062694,"49,024.07"
BEIS,UKAEA,26/09/2019,Hired Agency Staff - Rullion CMF/PO,Fusion,Rullion Engineering Ltd,5062695,"3,362.79"
BEIS,UKAEA,26/09/2019,Hired Agency Staff - Rullion CMF/PO,Fusion,Rullion Engineering Ltd,5062696,"4,898.40"
BEIS,UKAEA,26/09/2019,Hired Agency Staff - Rullion CMF/PO,Fusion,Rullion Engineering Ltd,5062697,"7,159.20"
BEIS,UKAEA,26/09/2019,Professional Services,Fusion,Radsafe Clg,5062702,"14,000.00"
BEIS,UKAEA,26/09/2019,Personnel Related,Fusion,People Asset Management Ltd,5062705,"9,586.53"
BEIS,UKAEA,26/09/2019,Hired Agency Staff - Rullion CMF/PO,Other,Rullion Engineering Ltd,5062709,"2,689.20"
BEIS,UKAEA,26/09/2019,Professional Services,Fusion,James Fisher Nuclear Limited,5062710,"25,000.00"
BEIS,UKAEA,26/09/2019,Hired Agency Staff - Rullion CMF/PO,Other,Rullion Engineering Ltd,5062711,"2,388.00"
BEIS,UKAEA,26/09/2019,Operational Goods,Fusion,Arco Ltd,5062712,856.70
BEIS,UKAEA,26/09/2019,Professional Services,Fusion,Cavendish Nuclear Limited,5062717,"30,669.33"
BEIS,UKAEA,26/09/2019,Professional Services,Fusion,Cavendish Nuclear Limited,5062718,"26,180.73"
BEIS,UKAEA,26/09/2019,Hired Agency Staff - Rullion CMF/PO,Fusion,Rullion Engineering Ltd,5062719,"5,538.20"
BEIS,UKAEA,26/09/2019,Engineering Goods,Other,Digi-Key Corporation,5062722,"2,439.04"
BEIS,UKAEA,26/09/2019,Engineering Goods,Fusion,Screwfix Direct Ltd,5062724,565.12
BEIS,UKAEA,26/09/2019,Engineering Goods,Fusion,Farnell Electronic Components Ltd,5062725,558.23
BEIS,UKAEA,26/09/2019,Hired Agency Staff - Rullion CMF/PO,Fusion,Rullion Engineering Ltd,5062726,"4,989.97"
BEIS,UKAEA,26/09/2019,Engineering Goods,Other,Hutton Engineering (Precision) Ltd,5062730,"1,005.05"
BEIS,UKAEA,26/09/2019,Hired Agency Staff - Rullion CMF/PO,Fusion,Rullion Engineering Ltd,5062731,"1,359.00"
BEIS,UKAEA,26/09/2019,Construction,Other,Anixter UK Ltd,5062733,"1,476.00"
BEIS,UKAEA,26/09/2019,Hired Agency Staff - Rullion CMF/PO,Other,Rullion Engineering Ltd,5062734,"5,374.94"
BEIS,UKAEA,26/09/2019,Hired Agency Staff - Rullion CMF/PO,Support Services,Rullion Engineering Ltd,5062739,"6,124.05"
BEIS,UKAEA,26/09/2019,Research,Fusion,University of Oxford,5062740,824.60
BEIS,UKAEA,26/09/2019,Engineering Goods,Fusion,VBC Group Ltd,5062741,934.29
BEIS,UKAEA,26/09/2019,Facilities,Other,Baxter Storey Ltd.,5062742,"79,086.25"
BEIS,UKAEA,26/09/2019,Engineering Goods,Other,Bosch Rexroth Ltd,5062743,"18,452.44"
BEIS,UKAEA,26/09/2019,Learning and Development,Support Services,Pilz Automation Technology,5062745,"1,400.00"
BEIS,UKAEA,26/09/2019,Hired Agency Staff - Rullion CMF/PO,Property,Rullion Engineering Ltd,5062749,"1,806.75"
BEIS,UKAEA,26/09/2019,Hired Agency Staff - Rullion CMF/PO,Fusion,Rullion Engineering Ltd,5062750,"1,577.50"
BEIS,UKAEA,26/09/2019,Hired Agency Staff - Rullion CMF/PO,Fusion,Rullion Engineering Ltd,5062751,"2,608.88"
BEIS,UKAEA,26/09/2019,Professional Services,Fusion,Oxford University - GBP,5062752,"22,870.40"
BEIS,UKAEA,26/09/2019,Hired Agency Staff - Rullion CMF/PO,Fusion,Rullion Engineering Ltd,5062753,"2,073.34"
BEIS,UKAEA,26/09/2019,Professional Services,Fusion,Sundry Supplier,5062757,"4,860.00"
BEIS,UKAEA,26/09/2019,Professional Services,Fusion,Raddec International Ltd,5062759,"1,970.00"
BEIS,UKAEA,26/09/2019,Facilities,Property,Trinity Fire & Security Systems Ltd,5062764,818.00
BEIS,UKAEA,26/09/2019,Facilities,Property,Insulation Contracting Services Ltd,5062765,"6,038.34"
BEIS,UKAEA,26/09/2019,Professional Services,Property,Celtech Consultancy Ltd,5062766,"1,150.00"
BEIS,UKAEA,26/09/2019,Professional Services,Property,Celtech Consultancy Ltd,5062767,950.00
BEIS,UKAEA,26/09/2019,Professional Services,Property,Gerald Honey Partnership,5062768,"1,440.00"
BEIS,UKAEA,26/09/2019,ICT,Fusion,Simetrix Technologies Ltd,5062772,"1,749.00"
BEIS,UKAEA,26/09/2019,Hired Agency Staff - Rullion CMF/PO,Support Services,Rullion Engineering Ltd,5062773,"4,138.93"
BEIS,UKAEA,26/09/2019,Hired Agency Staff - Rullion CMF/PO,Support Services,Rullion Engineering Ltd,5062774,"1,200.46"
BEIS,UKAEA,26/09/2019,Facilities,Property,Trinity Fire & Security Systems Ltd,5062780,814.45
BEIS,UKAEA,26/09/2019,Facilities,Fusion,Trinity Fire & Security Systems Ltd,5062780,814.45
BEIS,UKAEA,26/09/2019,Facilities,Property,Environmental Essentials Ltd,5062783,539.00
BEIS,UKAEA,26/09/2019,Facilities,Property,Environmental Essentials Ltd,5062785,"2,680.00"
BEIS,UKAEA,26/09/2019,Personnel Related,Other,Webrecruit,5062788,"1,554.00"
BEIS,UKAEA,26/09/2019,Hired Agency Staff - Rullion CMF/PO,Fusion,Rullion Engineering Ltd,5062789,"1,500.00"
BEIS,UKAEA,26/09/2019,Hired Agency Staff - Rullion CMF/PO,Fusion,Rullion Engineering Ltd,5062790,"1,883.72"
BEIS,UKAEA,26/09/2019,Hired Agency Staff - Rullion CMF/PO,Fusion,Rullion Engineering Ltd,5062791,"2,838.15"
BEIS,UKAEA,26/09/2019,Engineering Goods,Fusion,Batt Cables Plc,5062793,"1,252.08"
BEIS,UKAEA,26/09/2019,Hired Agency Staff - Rullion CMF/PO,Fusion,Rullion Engineering Ltd,5062797,833.43
BEIS,UKAEA,26/09/2019,Hired Agency Staff - Rullion CMF/PO,Fusion,Rullion Engineering Ltd,5062798,"5,264.22"
BEIS,UKAEA,26/09/2019,Hired Agency Staff - Rullion CMF/PO,Fusion,Rullion Engineering Ltd,5062799,"3,579.75"
BEIS,UKAEA,26/09/2019,Hired Agency Staff - Rullion CMF/PO,Fusion,Rullion Engineering Ltd,5062800,"1,913.25"
BEIS,UKAEA,26/09/2019,Hired Agency Staff - Rullion CMF/PO,Other,Rullion Engineering Ltd,5062802,"1,812.00"
BEIS,UKAEA,26/09/2019,Research,Fusion,University of Liverpool,5062803,513.02
BEIS,UKAEA,26/09/2019,Engineering Goods,Fusion,Macher Distribution Ltd,5062805,"2,473.32"
BEIS,UKAEA,26/09/2019,Learning and Development,Support Services,GP Strategies Ltd.,5062806,810.00
BEIS,UKAEA,26/09/2019,Hired Agency Staff - Rullion CMF/PO,Fusion,Rullion Engineering Ltd,5062813,"2,094.30"
BEIS,UKAEA,26/09/2019,Facilities,Property,Ice Roofing & Cladding Ltd.,5062814,"16,424.95"
BEIS,UKAEA,26/09/2019,Professional Services,Property,JLL Limited,5062815,"19,096.80"
BEIS,UKAEA,26/09/2019,Hired Agency Staff - Rullion CMF/PO,Other,Rullion Engineering Ltd,5062816,906.00
BEIS,UKAEA,26/09/2019,Hired Agency Staff - Rullion CMF/PO,Other,Rullion Engineering Ltd,5062817,"1,942.92"
BEIS,UKAEA,26/09/2019,Hired Agency Staff - Rullion CMF/PO,Other,Rullion Engineering Ltd,5062819,"1,812.00"
BEIS,UKAEA,26/09/2019,Hired Agency Staff - Rullion CMF/PO,Other,Rullion Engineering Ltd,5062820,"1,160.36"
BEIS,UKAEA,26/09/2019,Hired Agency Staff - Rullion CMF/PO,Other,Rullion Engineering Ltd,5062821,"1,187.34"
BEIS,UKAEA,26/09/2019,Hired Agency Staff - Rullion CMF/PO,Other,Rullion Engineering Ltd,5062822,747.50
BEIS,UKAEA,26/09/2019,Professional Services,Fusion,Pelican Software Ltd,5062823,"5,016.63"
BEIS,UKAEA,26/09/2019,Engineering Goods,Fusion,Faro Technologies UK Ltd,5062824,605.00
BEIS,UKAEA,06/09/2019,Receipts Suspense,Fusion,Grundfos Pumps Limited,6700127,"1,288.08"
BEIS,UKAEA,11/09/2019,Relocation Costs,Fusion,Employee Expenses,20007301,"2,927.22"
BEIS,UKAEA,11/09/2019,Relocation Costs,Fusion,Employee Expenses,20007301,"4,099.67"
BEIS,UKAEA,18/09/2019,Relocation Costs,Other,Employee Expenses,20007313,"2,096.67"
BEIS,UKAEA,18/09/2019,Other Employee Expenses,Support Services,Employee Expenses,20007329,800.00
BEIS,UKAEA,18/09/2019,Other Employee Expenses,Support Services,Employee Expenses,20007329,"1,168.20"
BEIS,UKAEA,18/09/2019,Entertainment - Business,Support Services,Employee Expenses,20007346,577.69
BEIS,UKAEA,26/09/2019,Mileage Allowance,Fusion,Employee Expenses,20007368,990.00
BEIS,UKAEA,26/09/2019,Travel,Fusion,Employee Expenses,20007368,991.01
BEIS,UKAEA,26/09/2019,Travel,Fusion,Employee Expenses,20007368,"1,068.35"
BEIS,UKAEA,Various,Various,Various,Employee Expenses <500,Various,"20,274.71"
BEIS,UKAEA,Various,Various,Various,P-Card Supplier <500,Various,0.00
BEIS,UKAEA,Various,Various,Various,Supplier <500,Various,"121,805.86"
